Publisher Label,Publisher URI,"Supplier ID","Supplier","Invoice No.","Amount (£)","Purpose","Transaction Number","Payment Date","Organisational Unit","Cost Centre(T)","Internal Category Number"
"Wolverhampton City Council","http://opendatacommunities.org/id/metropolitan-district-council/wolverhampton","704044","Greenhous Commercials Limited","13696029","246.05","Services - Professional Fees","190395086","22/11/2017","Fleet Services","Fleet Management","R4400"
"Wolverhampton City Council","http://opendatacommunities.org/id/metropolitan-district-council/wolverhampton","704044","Greenhous Commercials Limited","13696029","86.63","Services - Professional Fees","190395086","22/11/2017","Fleet Services","Fleet Management","R4400"
"Wolverhampton City Council","http://opendatacommunities.org/id/metropolitan-district-council/wolverhampton","704044","Greenhous Commercials Limited","13696029","76.67","Services - Professional Fees","190395086","22/11/2017","Fleet Services","Fleet Management","R4400"
"Wolverhampton City Council","http://opendatacommunities.org/id/metropolitan-district-council/wolverhampton","704044","Greenhous Commercials Limited","13696029","54.00","Services - Professional Fees","190395086","22/11/2017","Fleet Services","Fleet Management","R4400"
"Wolverhampton City Council","http://opendatacommunities.org/id/metropolitan-district-council/wolverhampton","704044","Greenhous Commercials Limited","13696029","10.27","Services - Professional Fees","190395086","22/11/2017","Fleet Services","Fleet Management","R4400"
"Wolverhampton City Council","http://opendatacommunities.org/id/metropolitan-district-council/wolverhampton","704044","Greenhous Commercials Limited","13696029","144.38","Services - Professional Fees","190395086","22/11/2017","Fleet Services","Fleet Management","R4400"
"Wolverhampton City Council","http://opendatacommunities.org/id/metropolitan-district-council/wolverhampton","704044","Greenhous Commercials Limited","13696029","330.02","Services - Professional Fees","190395086","22/11/2017","Fleet Services","Fleet Management","R4400"
"Wolverhampton City Council","http://opendatacommunities.org/id/metropolitan-district-council/wolverhampton","704044","Greenhous Commercials Limited","13696029","263.20","Services - Professional Fees","190395086","22/11/2017","Fleet Services","Fleet Management","R4400"
"Wolverhampton City Council","http://opendatacommunities.org/id/metropolitan-district-council/wolverhampton","704044","Greenhous Commercials Limited","13696029","28.88","Services - Professional Fees","190395086","22/11/2017","Fleet Services","Fleet Management","R4400"
"Wolverhampton City Council","http://opendatacommunities.org/id/metropolitan-district-council/wolverhampton","704044","Greenhous Commercials Limited","13696029","42.42","Services - Professional Fees","190395086","22/11/2017","Fleet Services","Fleet Management","R4400"
"Wolverhampton City Council","http://opendatacommunities.org/id/metropolitan-district-council/wolverhampton","704044","Greenhous Commercials Limited","13696029","57.75","Services - Professional Fees","190395086","22/11/2017","Fleet Services","Fleet Management","R4400"
"Wolverhampton City Council","http://opendatacommunities.org/id/metropolitan-district-council/wolverhampton","704044","Greenhous Commercials Limited","13696029","274.31","Services - Professional Fees","190395086","22/11/2017","Fleet Services","Fleet Management","R4400"
"Wolverhampton City Council","http://opendatacommunities.org/id/metropolitan-district-council/wolverhampton","704044","Greenhous Commercials Limited","13696029","11.55","Services - Professional Fees","190395086","22/11/2017","Fleet Services","Fleet Management","R4400"
"Wolverhampton City Council","http://opendatacommunities.org/id/metropolitan-district-council/wolverhampton","704044","Greenhous Commercials Limited","13696275","61.96","Services - Professional Fees","190395087","22/11/2017","Fleet Services","Fleet Management","R4400"
"Wolverhampton City Council","http://opendatacommunities.org/id/metropolitan-district-council/wolverhampton","704044","Greenhous Commercials Limited","13696275","17.33","Services - Professional Fees","190395087","22/11/2017","Fleet Services","Fleet Management","R4400"
"Wolverhampton City Council","http://opendatacommunities.org/id/metropolitan-district-council/wolverhampton","704044","Greenhous Commercials Limited","13696029","0.64","Services - Professional Fees","190395086","22/11/2017","Fleet Services","Fleet Management","R4400"
"Wolverhampton City Council","http://opendatacommunities.org/id/metropolitan-district-council/wolverhampton","704044","Greenhous Commercials Limited","13696029","11.55","Services - Professional Fees","190395086","22/11/2017","Fleet Services","Fleet Management","R4400"
"Wolverhampton City Council","http://opendatacommunities.org/id/metropolitan-district-council/wolverhampton","704044","Greenhous Commercials Limited","13696029","3.81","Services - Professional Fees","190395086","22/11/2017","Fleet Services","Fleet Management","R4400"
"Wolverhampton City Council","http://opendatacommunities.org/id/metropolitan-district-council/wolverhampton","704044","Greenhous Commercials Limited","13696029","17.33","Services - Professional Fees","190395086","22/11/2017","Fleet Services","Fleet Management","R4400"
"Wolverhampton City Council","http://opendatacommunities.org/id/metropolitan-district-council/wolverhampton","704044","Greenhous Commercials Limited","13696029","11.55","Services - Professional Fees","190395086","22/11/2017","Fleet Services","Fleet Management","R4400"
"Wolverhampton City Council","http://opendatacommunities.org/id/metropolitan-district-council/wolverhampton","704044","Greenhous Commercials Limited","13696029","57.75","Services - Professional Fees","190395086","22/11/2017","Fleet Services","Fleet Management","R4400"
"Wolverhampton City Council","http://opendatacommunities.org/id/metropolitan-district-council/wolverhampton","704044","Greenhous Commercials Limited","13696029","28.88","Services - Professional Fees","190395086","22/11/2017","Fleet Services","Fleet Management","R4400"
"Wolverhampton City Council","http://opendatacommunities.org/id/metropolitan-district-council/wolverhampton","704044","Greenhous Commercials Limited","13041233","20.50","Equipment - Purchase","190395085","22/11/2017","Fleet Services","Fleet Management","R4000"
"Wolverhampton City Council","http://opendatacommunities.org/id/metropolitan-district-council/wolverhampton","704044","Greenhous Commercials Limited","13038812","208.88","Equipment - Purchase","190395079","22/11/2017","Fleet Services","Fleet Management","R4000"
"Wolverhampton City Council","http://opendatacommunities.org/id/metropolitan-district-council/wolverhampton","704044","Greenhous Commercials Limited","13696810","14.00","Services - Professional Fees","190395869","22/11/2017","Fleet Services","Fleet Management","R4400"
"Wolverhampton City Council","http://opendatacommunities.org/id/metropolitan-district-council/wolverhampton","704044","Greenhous Commercials Limited","13696810","15.00","Services - Professional Fees","190395869","22/11/2017","Fleet Services","Fleet Management","R4400"
"Wolverhampton City Council","http://opendatacommunities.org/id/metropolitan-district-council/wolverhampton","704044","Greenhous Commercials Limited","13696810","45.00","Services - Professional Fees","190395869","22/11/2017","Fleet Services","Fleet Management","R4400"
"Wolverhampton City Council","http://opendatacommunities.org/id/metropolitan-district-council/wolverhampton","704044","Greenhous Commercials Limited","13696810","54.00","Services - Professional Fees","190395869","22/11/2017","Fleet Services","Fleet Management","R4400"
"Wolverhampton City Council","http://opendatacommunities.org/id/metropolitan-district-council/wolverhampton","704044","Greenhous Commercials Limited","13696465","15.00","Services - Professional Fees","190395868","22/11/2017","Fleet Services","Fleet Management","R4400"
"Wolverhampton City Council","http://opendatacommunities.org/id/metropolitan-district-council/wolverhampton","704044","Greenhous Commercials Limited","13037106","140.00","Equipment - Purchase","190395077","22/11/2017","Fleet Services","Fleet Management","R4000"
"Wolverhampton City Council","http://opendatacommunities.org/id/metropolitan-district-council/wolverhampton","704044","Greenhous Commercials Limited","13040492","81.00","Equipment - Purchase","190395083","22/11/2017","Fleet Services","Fleet Management","R4000"
"Wolverhampton City Council","http://opendatacommunities.org/id/metropolitan-district-council/wolverhampton","704044","Greenhous Commercials Limited","13040554","12.86","Equipment - Purchase","190395084","22/11/2017","Fleet Services","Fleet Management","R4000"
"Wolverhampton City Council","http://opendatacommunities.org/id/metropolitan-district-council/wolverhampton","704044","Greenhous Commercials Limited","13039846","59.00","Equipment - Purchase","190395080","22/11/2017","Fleet Services","Fleet Management","R4000"
"Wolverhampton City Council","http://opendatacommunities.org/id/metropolitan-district-council/wolverhampton","704044","Greenhous Commercials Limited","13039936","59.00","Equipment - Purchase","190395082","22/11/2017","Fleet Services","Fleet Management","R4000"
"Wolverhampton City Council","http://opendatacommunities.org/id/metropolitan-district-council/wolverhampton","704044","Greenhous Commercials Limited","13696814","50.00","Services - Professional Fees","190395870","22/11/2017","Fleet Services","Fleet Management","R4400"
"Wolverhampton City Council","http://opendatacommunities.org/id/metropolitan-district-council/wolverhampton","704044","Greenhous Commercials Limited","1302390","42.55","Equipment - Purchase","190395864","22/11/2017","Fleet Services","Fleet Management","R4000"
"Wolverhampton City Council","http://opendatacommunities.org/id/metropolitan-district-council/wolverhampton","704044","Greenhous Commercials Limited","13029370","42.38","Equipment - Purchase","190395865","22/11/2017","Fleet Services","Fleet Management","R4000"
"Wolverhampton City Council","http://opendatacommunities.org/id/metropolitan-district-council/wolverhampton","704044","Greenhous Commercials Limited","13029803","55.00","Equipment - Purchase","190395866","22/11/2017","Fleet Services","Fleet Management","R4000"
"Wolverhampton City Council","http://opendatacommunities.org/id/metropolitan-district-council/wolverhampton","704044","Greenhous Commercials Limited","13029803","173.00","Equipment - Purchase","190395866","22/11/2017","Fleet Services","Fleet Management","R4000"
"Wolverhampton City Council","http://opendatacommunities.org/id/metropolitan-district-council/wolverhampton","704044","Greenhous Commercials Limited","13696465","65.00","Services - Professional Fees","190395868","22/11/2017","Fleet Services","Fleet Management","R4400"
"Wolverhampton City Council","http://opendatacommunities.org/id/metropolitan-district-council/wolverhampton","704044","Greenhous Commercials Limited","13696987","54.00","Services - Professional Fees","190395871","22/11/2017","Fleet Services","Fleet Management","R4400"
"Wolverhampton City Council","http://opendatacommunities.org/id/metropolitan-district-council/wolverhampton","704044","Greenhous Commercials Limited","13696987","14.00","Services - Professional Fees","190395871","22/11/2017","Fleet Services","Fleet Management","R4400"
"Wolverhampton City Council","http://opendatacommunities.org/id/metropolitan-district-council/wolverhampton","704044","Greenhous Commercials Limited","13695022","54.00","Services - Professional Fees","190390201","08/11/2017","Fleet Services","Fleet Management","R4400"
"Wolverhampton City Council","http://opendatacommunities.org/id/metropolitan-district-council/wolverhampton","704044","Greenhous Commercials Limited","13695022","14.00","Services - Professional Fees","190390201","08/11/2017","Fleet Services","Fleet Management","R4400"
"Wolverhampton City Council","http://opendatacommunities.org/id/metropolitan-district-council/wolverhampton","704044","Greenhous Commercials Limited","13695022","15.00","Services - Professional Fees","190390201","08/11/2017","Fleet Services","Fleet Management","R4400"
"Wolverhampton City Council","http://opendatacommunities.org/id/metropolitan-district-council/wolverhampton","704044","Greenhous Commercials Limited","13694516","24.49","Services - Professional Fees","190390175","08/11/2017","Fleet Services","Fleet Management","R4400"
"Wolverhampton City Council","http://opendatacommunities.org/id/metropolitan-district-council/wolverhampton","704044","Greenhous Commercials Limited","13694516","57.75","Services - Professional Fees","190390175","08/11/2017","Fleet Services","Fleet Management","R4400"
"Wolverhampton City Council","http://opendatacommunities.org/id/metropolitan-district-council/wolverhampton","704044","Greenhous Commercials Limited","13694516","11.40","Services - Professional Fees","190390175","08/11/2017","Fleet Services","Fleet Management","R4400"
"Wolverhampton City Council","http://opendatacommunities.org/id/metropolitan-district-council/wolverhampton","704044","Greenhous Commercials Limited","13694516","173.25","Services - Professional Fees","190390175","08/11/2017","Fleet Services","Fleet Management","R4400"
"Wolverhampton City Council","http://opendatacommunities.org/id/metropolitan-district-council/wolverhampton","704044","Greenhous Commercials Limited","13694782","54.00","Services - Professional Fees","190390200","08/11/2017","Fleet Services","Fleet Management","R4400"
"Wolverhampton City Council","http://opendatacommunities.org/id/metropolitan-district-council/wolverhampton","704044","Greenhous Commercials Limited","13694486","15.00","Services - Professional Fees","190390198","08/11/2017","Fleet Services","Fleet Management","R4400"
"Wolverhampton City Council","http://opendatacommunities.org/id/metropolitan-district-council/wolverhampton","704044","Greenhous Commercials Limited","13694486","14.00","Services - Professional Fees","190390198","08/11/2017","Fleet Services","Fleet Management","R4400"
"Wolverhampton City Council","http://opendatacommunities.org/id/metropolitan-district-council/wolverhampton","704044","Greenhous Commercials Limited","13694486","54.00","Services - Professional Fees","190390198","08/11/2017","Fleet Services","Fleet Management","R4400"
"Wolverhampton City Council","http://opendatacommunities.org/id/metropolitan-district-council/wolverhampton","704044","Greenhous Commercials Limited","13694486","65.00","Services - Professional Fees","190390198","08/11/2017","Fleet Services","Fleet Management","R4400"
"Wolverhampton City Council","http://opendatacommunities.org/id/metropolitan-district-council/wolverhampton","704044","Greenhous Commercials Limited","13037349","68.00","Equipment - Purchase","190390196","08/11/2017","Fleet Services","Fleet Management","R4000"
"Wolverhampton City Council","http://opendatacommunities.org/id/metropolitan-district-council/wolverhampton","704044","Greenhous Commercials Limited","13037366","162.00","Equipment - Purchase","190390197","08/11/2017","Fleet Services","Fleet Management","R4000"
"Wolverhampton City Council","http://opendatacommunities.org/id/metropolitan-district-council/wolverhampton","704044","Greenhous Commercials Limited","13037278","14.10","Equipment - Purchase","190390195","08/11/2017","Fleet Services","Fleet Management","R4000"
"Wolverhampton City Council","http://opendatacommunities.org/id/metropolitan-district-council/wolverhampton","704044","Greenhous Commercials Limited","13037278","60.00","Equipment - Purchase","190390195","08/11/2017","Fleet Services","Fleet Management","R4000"
"Wolverhampton City Council","http://opendatacommunities.org/id/metropolitan-district-council/wolverhampton","704044","Greenhous Commercials Limited","13695022","45.00","Services - Professional Fees","190390201","08/11/2017","Fleet Services","Fleet Management","R4400"
"Wolverhampton City Council","http://opendatacommunities.org/id/metropolitan-district-council/wolverhampton","704044","Greenhous Commercials Limited","13035404","50.00","Equipment - Purchase","190390186","08/11/2017","Fleet Services","Fleet Management","R4000"
"Wolverhampton City Council","http://opendatacommunities.org/id/metropolitan-district-council/wolverhampton","704044","Greenhous Commercials Limited","13035404","53.57","Equipment - Purchase","190390186","08/11/2017","Fleet Services","Fleet Management","R4000"
"Wolverhampton City Council","http://opendatacommunities.org/id/metropolitan-district-council/wolverhampton","704044","Greenhous Commercials Limited","13035404","140.00","Equipment - Purchase","190390186","08/11/2017","Fleet Services","Fleet Management","R4000"
"Wolverhampton City Council","http://opendatacommunities.org/id/metropolitan-district-council/wolverhampton","704044","Greenhous Commercials Limited","13035404","415.00","Equipment - Purchase","190390186","08/11/2017","Fleet Services","Fleet Management","R4000"
"Wolverhampton City Council","http://opendatacommunities.org/id/metropolitan-district-council/wolverhampton","704044","Greenhous Commercials Limited","13035404","5.77","Equipment - Purchase","190390186","08/11/2017","Fleet Services","Fleet Management","R4000"
"Wolverhampton City Council","http://opendatacommunities.org/id/metropolitan-district-council/wolverhampton","704044","Greenhous Commercials Limited","13035404","58.69","Equipment - Purchase","190390186","08/11/2017","Fleet Services","Fleet Management","R4000"
"Wolverhampton City Council","http://opendatacommunities.org/id/metropolitan-district-council/wolverhampton","704044","Greenhous Commercials Limited","13035404","5.44","Equipment - Purchase","190390186","08/11/2017","Fleet Services","Fleet Management","R4000"
"Wolverhampton City Council","http://opendatacommunities.org/id/metropolitan-district-council/wolverhampton","704044","Greenhous Commercials Limited","13035404","176.00","Equipment - Purchase","190390186","08/11/2017","Fleet Services","Fleet Management","R4000"
"Wolverhampton City Council","http://opendatacommunities.org/id/metropolitan-district-council/wolverhampton","704044","Greenhous Commercials Limited","13035404","399.00","Equipment - Purchase","190390186","08/11/2017","Fleet Services","Fleet Management","R4000"
"Wolverhampton City Council","http://opendatacommunities.org/id/metropolitan-district-council/wolverhampton","704044","Greenhous Commercials Limited","13035404","18.10","Equipment - Purchase","190390186","08/11/2017","Fleet Services","Fleet Management","R4000"
"Wolverhampton City Council","http://opendatacommunities.org/id/metropolitan-district-council/wolverhampton","704044","Greenhous Commercials Limited","13035404","26.19","Equipment - Purchase","190390186","08/11/2017","Fleet Services","Fleet Management","R4000"
"Wolverhampton City Council","http://opendatacommunities.org/id/metropolitan-district-council/wolverhampton","704044","Greenhous Commercials Limited","13035404","515.95","Equipment - Purchase","190390186","08/11/2017","Fleet Services","Fleet Management","R4000"
"Wolverhampton City Council","http://opendatacommunities.org/id/metropolitan-district-council/wolverhampton","704044","Greenhous Commercials Limited","13035404","115.00","Equipment - Purchase","190390186","08/11/2017","Fleet Services","Fleet Management","R4000"
"Wolverhampton City Council","http://opendatacommunities.org/id/metropolitan-district-council/wolverhampton","704044","Greenhous Commercials Limited","13035404","28.60","Equipment - Purchase","190390186","08/11/2017","Fleet Services","Fleet Management","R4000"
"Wolverhampton City Council","http://opendatacommunities.org/id/metropolitan-district-council/wolverhampton","704044","Greenhous Commercials Limited","13035404","186.53","Equipment - Purchase","190390186","08/11/2017","Fleet Services","Fleet Management","R4000"
"Wolverhampton City Council","http://opendatacommunities.org/id/metropolitan-district-council/wolverhampton","704044","Greenhous Commercials Limited","13033432","43.37","Equipment - Purchase","190390185","08/11/2017","Fleet Services","Passenger Transport - Older Persons","R4000"
"Wolverhampton City Council","http://opendatacommunities.org/id/metropolitan-district-council/wolverhampton","704044","Greenhous Commercials Limited","13694782","14.00","Services - Professional Fees","190390200","08/11/2017","Fleet Services","Fleet Management","R4400"
"Wolverhampton City Council","http://opendatacommunities.org/id/metropolitan-district-council/wolverhampton","704044","Greenhous Commercials Limited","13694782","15.00","Services - Professional Fees","190390200","08/11/2017","Fleet Services","Fleet Management","R4400"
"Wolverhampton City Council","http://opendatacommunities.org/id/metropolitan-district-council/wolverhampton","704044","Greenhous Commercials Limited","13694782","65.00","Services - Professional Fees","190390200","08/11/2017","Fleet Services","Fleet Management","R4400"
"Wolverhampton City Council","http://opendatacommunities.org/id/metropolitan-district-council/wolverhampton","704044","Greenhous Commercials Limited","13695242","15.00","MOT & HGV Tests","190390203","08/11/2017","Fleet Services","Fleet Management","R3005"
"Wolverhampton City Council","http://opendatacommunities.org/id/metropolitan-district-council/wolverhampton","704044","Greenhous Commercials Limited","13695242","35.00","MOT & HGV Tests","190390203","08/11/2017","Fleet Services","Fleet Management","R3005"
"Wolverhampton City Council","http://opendatacommunities.org/id/metropolitan-district-council/wolverhampton","704044","Greenhous Commercials Limited","13036678","2.80","Equipment - Purchase","190390191","08/11/2017","Fleet Services","Fleet Management","R4000"
"Wolverhampton City Council","http://opendatacommunities.org/id/metropolitan-district-council/wolverhampton","704044","Greenhous Commercials Limited","13036934","187.90","Equipment - Purchase","190390193","08/11/2017","Fleet Services","Fleet Management","R4000"
"Wolverhampton City Council","http://opendatacommunities.org/id/metropolitan-district-council/wolverhampton","704044","Greenhous Commercials Limited","13037166","19.84","Equipment - Purchase","190390194","08/11/2017","Fleet Services","Fleet Management","R4000"
"Wolverhampton City Council","http://opendatacommunities.org/id/metropolitan-district-council/wolverhampton","704044","Greenhous Commercials Limited","13035780","20.52","Equipment - Purchase","190390189","08/11/2017","Fleet Services","Fleet Management","R4000"
"Wolverhampton City Council","http://opendatacommunities.org/id/metropolitan-district-council/wolverhampton","704044","Greenhous Commercials Limited","13036422","162.00","Equipment - Purchase","190390190","08/11/2017","Fleet Services","Fleet Management","R4000"
"Wolverhampton City Council","http://opendatacommunities.org/id/metropolitan-district-council/wolverhampton","704044","Greenhous Commercials Limited","13036816","28.30","Equipment - Purchase","190390192","08/11/2017","Fleet Services","Fleet Management","R4000"
"Wolverhampton City Council","http://opendatacommunities.org/id/metropolitan-district-council/wolverhampton","704044","Greenhous Commercials Limited","13036816","21.13","Equipment - Purchase","190390192","08/11/2017","Fleet Services","Fleet Management","R4000"
"Wolverhampton City Council","http://opendatacommunities.org/id/metropolitan-district-council/wolverhampton","704044","Greenhous Commercials Limited","13036816","71.05","Equipment - Purchase","190390192","08/11/2017","Fleet Services","Fleet Management","R4000"
"Wolverhampton City Council","http://opendatacommunities.org/id/metropolitan-district-council/wolverhampton","704044","Greenhous Commercials Limited","13036816","95.00","Equipment - Purchase","190390192","08/11/2017","Fleet Services","Fleet Management","R4000"
"Wolverhampton City Council","http://opendatacommunities.org/id/metropolitan-district-council/wolverhampton","704044","Greenhous Commercials Limited","13035623","517.63","Equipment - Purchase","190390187","08/11/2017","Fleet Services","Fleet Management","R4000"
"Wolverhampton City Council","http://opendatacommunities.org/id/metropolitan-district-council/wolverhampton","704044","Greenhous Commercials Limited","13035623","34.70","Equipment - Purchase","190390187","08/11/2017","Fleet Services","Fleet Management","R4000"
"Wolverhampton City Council","http://opendatacommunities.org/id/metropolitan-district-council/wolverhampton","704044","Greenhous Commercials Limited","13035623","545.73","Equipment - Purchase","190390187","08/11/2017","Fleet Services","Fleet Management","R4000"
"Wolverhampton City Council","http://opendatacommunities.org/id/metropolitan-district-council/wolverhampton","704044","Greenhous Commercials Limited","13035623","88.56","Equipment - Purchase","190390187","08/11/2017","Fleet Services","Fleet Management","R4000"
"Wolverhampton City Council","http://opendatacommunities.org/id/metropolitan-district-council/wolverhampton","704044","Greenhous Commercials Limited","13035623","148.84","Equipment - Purchase","190390187","08/11/2017","Fleet Services","Fleet Management","R4000"
"Wolverhampton City Council","http://opendatacommunities.org/id/metropolitan-district-council/wolverhampton","704044","Greenhous Commercials Limited","13695111","15.00","Services - Professional Fees","190390202","08/11/2017","Fleet Services","Fleet Management","R4400"
"Wolverhampton City Council","http://opendatacommunities.org/id/metropolitan-district-council/wolverhampton","704044","Greenhous Commercials Limited","13695111","65.00","Services - Professional Fees","190390202","08/11/2017","Fleet Services","Fleet Management","R4400"
"Wolverhampton City Council","http://opendatacommunities.org/id/metropolitan-district-council/wolverhampton","704044","Greenhous Commercials Limited","13694721","15.00","Services - Professional Fees","190390199","08/11/2017","Fleet Services","Fleet Management","R4400"
"Wolverhampton City Council","http://opendatacommunities.org/id/metropolitan-district-council/wolverhampton","704044","Greenhous Commercials Limited","13694721","65.00","Services - Professional Fees","190390199","08/11/2017","Fleet Services","Fleet Management","R4400"
"Wolverhampton City Council","http://opendatacommunities.org/id/metropolitan-district-council/wolverhampton","704044","Greenhous Commercials Limited","13035623","140.00","Equipment - Purchase","190390187","08/11/2017","Fleet Services","Fleet Management","R4000"
"Wolverhampton City Council","http://opendatacommunities.org/id/metropolitan-district-council/wolverhampton","704061","Guest Motors Limited","13035665","6.11","Equipment - Purchase","190390188","08/11/2017","Fleet Services","Fleet Management","R4000"
"Wolverhampton City Council","http://opendatacommunities.org/id/metropolitan-district-council/wolverhampton","704061","Guest Motors Limited","13516273","182.70","Services - Professional Fees","190395867","22/11/2017","Fleet Services","Fleet Management","R4400"
"Wolverhampton City Council","http://opendatacommunities.org/id/metropolitan-district-council/wolverhampton","704061","Guest Motors Limited","13035533","9.06","Equipment - Purchase","190388906","01/11/2017","Fleet Services","Fleet Management","R4000"
"Wolverhampton City Council","http://opendatacommunities.org/id/metropolitan-district-council/wolverhampton","704061","Guest Motors Limited","13035533","11.02","Equipment - Purchase","190388906","01/11/2017","Fleet Services","Fleet Management","R4000"
"Wolverhampton City Council","http://opendatacommunities.org/id/metropolitan-district-council/wolverhampton","704061","Guest Motors Limited","13516170","174.00","Services - Professional Fees","190391790","10/11/2017","Fleet Services","Fleet Management","R4400"
"Wolverhampton City Council","http://opendatacommunities.org/id/metropolitan-district-council/wolverhampton","704061","Guest Motors Limited","13516170","206.01","Services - Professional Fees","190391790","10/11/2017","Fleet Services","Fleet Management","R4400"
"Wolverhampton City Council","http://opendatacommunities.org/id/metropolitan-district-council/wolverhampton","704079","H Jenkinson & Company Ltd","SINV00784090","23,757.06","Plant, Equipment, Machinery & Computer Hardware","130195886","22/11/2017","-","Future Spaces","C3000"
"Wolverhampton City Council","http://opendatacommunities.org/id/metropolitan-district-council/wolverhampton","704079","H Jenkinson & Company Ltd","SINV00768947","269.85","Furniture","130195885","22/11/2017","Adult Education","ICT Services","R4004"
"Wolverhampton City Council","http://opendatacommunities.org/id/metropolitan-district-council/wolverhampton","704079","H Jenkinson & Company Ltd","SINV00782242","741.94","Furniture","130193991","08/11/2017","Adult Education","Service Wide","R4004"
"Wolverhampton City Council","http://opendatacommunities.org/id/metropolitan-district-council/wolverhampton","704079","H Jenkinson & Company Ltd","SINV00782242","672.36","Furniture","130193991","08/11/2017","Adult Education","Service Wide","R4004"
"Wolverhampton City Council","http://opendatacommunities.org/id/metropolitan-district-council/wolverhampton","704079","H Jenkinson & Company Ltd","SINV00782242","759.70","Furniture","130193991","08/11/2017","Adult Education","Service Wide","R4004"
"Wolverhampton City Council","http://opendatacommunities.org/id/metropolitan-district-council/wolverhampton","704079","H Jenkinson & Company Ltd","SINV00782242","257.25","Furniture","130193991","08/11/2017","Adult Education","Service Wide","R4004"
"Wolverhampton City Council","http://opendatacommunities.org/id/metropolitan-district-council/wolverhampton","704079","H Jenkinson & Company Ltd","SINV00782240","306.84","Furniture","130193989","08/11/2017","Mental Health Assesment & Care Management","Mental Health Assessment & Care Management","R4004"
"Wolverhampton City Council","http://opendatacommunities.org/id/metropolitan-district-council/wolverhampton","704079","H Jenkinson & Company Ltd","SINV00782241","3,835.50","Furniture","130193990","03/11/2017","Facilities Management","Civic Centre","R4004"
"Wolverhampton City Council","http://opendatacommunities.org/id/metropolitan-district-council/wolverhampton","704079","H Jenkinson & Company Ltd","SINV00782243","945.00","Fixtures and Fittings - Purchases","130193992","03/11/2017","Early Intervention","EIP Locality 6 � Dovecotes","R2500"
"Wolverhampton City Council","http://opendatacommunities.org/id/metropolitan-district-council/wolverhampton","704079","H Jenkinson & Company Ltd","SINV00778765","24,329.17","Furniture","130191025","03/11/2017","Early Intervention","EIP Locality 5 � Whitmore Reans","R4004"
"Wolverhampton City Council","http://opendatacommunities.org/id/metropolitan-district-council/wolverhampton","704097","Hags-Smp Limited Rss Playmakers","054609","711.49","Equipment - R & M","130195324","29/11/2017","Environmental Maintenance","Parks - East Area Management","R4003"
"Wolverhampton City Council","http://opendatacommunities.org/id/metropolitan-district-council/wolverhampton","704097","Hags-Smp Limited Rss Playmakers","054334","95.00","Equipment - R & M","130194186","15/11/2017","Environmental Maintenance","Parks - South West Area Management","R4003"
"Wolverhampton City Council","http://opendatacommunities.org/id/metropolitan-district-council/wolverhampton","704097","Hags-Smp Limited Rss Playmakers","053304","1,547.13","Equipment - R & M","130187251","15/11/2017","Environmental Maintenance","Parks - South West Area Management","R4003"
"Wolverhampton City Council","http://opendatacommunities.org/id/metropolitan-district-council/wolverhampton","704097","Hags-Smp Limited Rss Playmakers","054124","95.00","Equipment - R & M","130194804","15/11/2017","Environmental Maintenance","Parks - East Area Management","R4003"
"Wolverhampton City Council","http://opendatacommunities.org/id/metropolitan-district-council/wolverhampton","704097","Hags-Smp Limited Rss Playmakers","054155","127.50","Equipment - R & M","130192262","08/11/2017","Environmental Maintenance","Parks - East Area Management","R4003"
"Wolverhampton City Council","http://opendatacommunities.org/id/metropolitan-district-council/wolverhampton","704097","Hags-Smp Limited Rss Playmakers","054230","625.00","Equipment - R & M","130193064","08/11/2017","Environmental Maintenance","Parks - East Area Management","R4003"
"Wolverhampton City Council","http://opendatacommunities.org/id/metropolitan-district-council/wolverhampton","704097","Hags-Smp Limited Rss Playmakers","054125","95.00","Equipment - R & M","130193061","03/11/2017","Environmental Maintenance","Parks - South West Area Management","R4003"
"Wolverhampton City Council","http://opendatacommunities.org/id/metropolitan-district-council/wolverhampton","704097","Hags-Smp Limited Rss Playmakers","054126","40.00","Equipment - R & M","130193062","03/11/2017","Environmental Maintenance","Parks - South West Area Management","R4003"
"Wolverhampton City Council","http://opendatacommunities.org/id/metropolitan-district-council/wolverhampton","704097","Hags-Smp Limited Rss Playmakers","054127","135.00","Equipment - R & M","130193063","03/11/2017","Environmental Maintenance","Parks - South West Area Management","R4003"
"Wolverhampton City Council","http://opendatacommunities.org/id/metropolitan-district-council/wolverhampton","704097","Hags-Smp Limited Rss Playmakers","054040","115.00","Equipment - R & M","130192258","01/11/2017","Environmental Maintenance","Parks - East Area Management","R4003"
"Wolverhampton City Council","http://opendatacommunities.org/id/metropolitan-district-council/wolverhampton","704097","Hags-Smp Limited Rss Playmakers","054041","95.00","Equipment - R & M","130192426","01/11/2017","Environmental Maintenance","Parks - East Area Management","R4003"
"Wolverhampton City Council","http://opendatacommunities.org/id/metropolitan-district-council/wolverhampton","704097","Hags-Smp Limited Rss Playmakers","053931","24.00","Equipment - R & M","130193060","01/11/2017","Environmental Maintenance","Parks - East Area Management","R4003"
"Wolverhampton City Council","http://opendatacommunities.org/id/metropolitan-district-council/wolverhampton","704097","Hags-Smp Limited Rss Playmakers","054250","43.71","Equipment - R & M","130192733","10/11/2017","Environmental Maintenance","Parks - East Area Management","R4003"
"Wolverhampton City Council","http://opendatacommunities.org/id/metropolitan-district-council/wolverhampton","704097","Hags-Smp Limited Rss Playmakers","054251","199.00","Equipment - R & M","130192734","10/11/2017","Environmental Maintenance","Parks - South West Area Management","R4003"
"Wolverhampton City Council","http://opendatacommunities.org/id/metropolitan-district-council/wolverhampton","704097","Hags-Smp Limited Rss Playmakers","054288","40.00","Equipment - R & M","130193065","15/11/2017","Environmental Maintenance","Parks - South West Area Management","R4003"
"Wolverhampton City Council","http://opendatacommunities.org/id/metropolitan-district-council/wolverhampton","704097","Hags-Smp Limited Rss Playmakers","054331","109.00","Equipment - R & M","130193067","15/11/2017","Environmental Maintenance","Parks - East Area Management","R4003"
"Wolverhampton City Council","http://opendatacommunities.org/id/metropolitan-district-council/wolverhampton","704097","Hags-Smp Limited Rss Playmakers","054332","95.00","Equipment - R & M","130193068","15/11/2017","Environmental Maintenance","Parks - East Area Management","R4003"
"Wolverhampton City Council","http://opendatacommunities.org/id/metropolitan-district-council/wolverhampton","704097","Hags-Smp Limited Rss Playmakers","054330","11.40","Equipment - R & M","130193066","15/11/2017","Environmental Maintenance","Parks - East Area Management","R4003"
"Wolverhampton City Council","http://opendatacommunities.org/id/metropolitan-district-council/wolverhampton","704097","Hags-Smp Limited Rss Playmakers","052502","45.00","Equipment - R & M","130182950","10/11/2017","Environmental Maintenance","Parks - South West Area Management","R4003"
"Wolverhampton City Council","http://opendatacommunities.org/id/metropolitan-district-council/wolverhampton","704097","Hags-Smp Limited Rss Playmakers","054053","165.00","Equipment - R & M","130192427","01/11/2017","Environmental Maintenance","Parks - East Area Management","R4003"
"Wolverhampton City Council","http://opendatacommunities.org/id/metropolitan-district-council/wolverhampton","704097","Hags-Smp Limited Rss Playmakers","054078","11.40","Equipment - R & M","130192428","01/11/2017","Environmental Maintenance","Parks - East Area Management","R4003"
"Wolverhampton City Council","http://opendatacommunities.org/id/metropolitan-district-council/wolverhampton","704097","Hags-Smp Limited Rss Playmakers","054079","115.00","Equipment - R & M","130192261","01/11/2017","Environmental Maintenance","Parks - South West Area Management","R4003"
"Wolverhampton City Council","http://opendatacommunities.org/id/metropolitan-district-council/wolverhampton","704097","Hags-Smp Limited Rss Playmakers","054052","45.00","Equipment - R & M","130192259","01/11/2017","Environmental Maintenance","Parks - East Area Management","R4003"
"Wolverhampton City Council","http://opendatacommunities.org/id/metropolitan-district-council/wolverhampton","704097","Hags-Smp Limited Rss Playmakers","054054","45.00","Equipment - R & M","130192260","01/11/2017","Environmental Maintenance","Parks - East Area Management","R4003"
"Wolverhampton City Council","http://opendatacommunities.org/id/metropolitan-district-council/wolverhampton","704097","Hags-Smp Limited Rss Playmakers","054333","95.00","Equipment - R & M","130194185","10/11/2017","Environmental Maintenance","Parks - South West Area Management","R4003"
"Wolverhampton City Council","http://opendatacommunities.org/id/metropolitan-district-council/wolverhampton","704097","Hags-Smp Limited Rss Playmakers","054260","750.00","Equipment - R & M","130194805","15/11/2017","Environmental Maintenance","Parks - East Area Management","R4003"
"Wolverhampton City Council","http://opendatacommunities.org/id/metropolitan-district-council/wolverhampton","704098","Halcrow Group Limited","44545CN","-1,391.15","Construction and Conversion","130193026","29/11/2017","-","Community Hubs","C1100"
"Wolverhampton City Council","http://opendatacommunities.org/id/metropolitan-district-council/wolverhampton","704098","Halcrow Group Limited","44545A","1,391.15","Construction and Conversion","130192895","29/11/2017","-","Community Hubs","C1100"
"Wolverhampton City Council","http://opendatacommunities.org/id/metropolitan-district-council/wolverhampton","704132","Harold L. Smith Transmissions Limited","0000251733","250.00","Equipment - Purchase","190397158","24/11/2017","Fleet Services","Fleet Management","R4000"
"Wolverhampton City Council","http://opendatacommunities.org/id/metropolitan-district-council/wolverhampton","704138","Harris Glass Limited","60535","39,677.00","R&M - Departmental response (external)","130194942","15/11/2017","Transportation","Bridges & Subways","R2003"
"Wolverhampton City Council","http://opendatacommunities.org/id/metropolitan-district-council/wolverhampton","704144","Hartshorne Motor Services Limited","2208130-01","1,821.22","Services - Professional Fees","190391795","10/11/2017","Fleet Services","Fleet Management","R4400"
"Wolverhampton City Council","http://opendatacommunities.org/id/metropolitan-district-council/wolverhampton","704144","Hartshorne Motor Services Limited","2208130-01","1,976.00","Services - Professional Fees","190391795","10/11/2017","Fleet Services","Fleet Management","R4400"
"Wolverhampton City Council","http://opendatacommunities.org/id/metropolitan-district-council/wolverhampton","704162","Hays Education","1007958622","69.10","Services - Professional Fees","130191026","01/11/2017","Early Intervention","EIP Locality 2 � Bilston/Rocket Pool","R4400"
"Wolverhampton City Council","http://opendatacommunities.org/id/metropolitan-district-council/wolverhampton","704162","Hays Education","1007959771","34.28","Services - Professional Fees","130191027","01/11/2017","Early Intervention","EIP Locality 2 � Bilston/Rocket Pool","R4400"
"Wolverhampton City Council","http://opendatacommunities.org/id/metropolitan-district-council/wolverhampton","704162","Hays Education","1007971332","82.92","Services - Professional Fees","130191740","08/11/2017","Early Intervention","EIP Locality 2 � Bilston/Rocket Pool","R4400"
"Wolverhampton City Council","http://opendatacommunities.org/id/metropolitan-district-council/wolverhampton","704162","Hays Education","1007995241","125.91","Services - Professional Fees","130192540","15/11/2017","Early Intervention","EIP Locality 2 � Bilston/Rocket Pool","R4400"
"Wolverhampton City Council","http://opendatacommunities.org/id/metropolitan-district-council/wolverhampton","704162","Hays Education","1008010413","41.46","Services - Professional Fees","130193445","22/11/2017","Early Intervention","EIP Locality 2 � Bilston/Rocket Pool","R4400"
"Wolverhampton City Council","http://opendatacommunities.org/id/metropolitan-district-council/wolverhampton","704162","Hays Education","1008010412","79.47","Services - Professional Fees","130193444","22/11/2017","Early Intervention","EIP Locality 2 � Bilston/Rocket Pool","R4400"
"Wolverhampton City Council","http://opendatacommunities.org/id/metropolitan-district-council/wolverhampton","704163","Hays Specialist Recruitment Limited","1008014216","664.83","Agency Staff","130193448","22/11/2017","The Hub","Payroll/HR","R1100"
"Wolverhampton City Council","http://opendatacommunities.org/id/metropolitan-district-council/wolverhampton","704163","Hays Specialist Recruitment Limited","1007967427","341.53","Agency Staff","130193844","29/11/2017","The Hub","Payroll/HR","R1100"
"Wolverhampton City Council","http://opendatacommunities.org/id/metropolitan-district-council/wolverhampton","704163","Hays Specialist Recruitment Limited","1007952979","532.07","Agency Staff","130193994","29/11/2017","The Hub","Payroll/HR","R1100"
"Wolverhampton City Council","http://opendatacommunities.org/id/metropolitan-district-council/wolverhampton","704163","Hays Specialist Recruitment Limited","1007887736","532.07","Agency Staff","130193842","29/11/2017","The Hub","Payroll/HR","R1100"
"Wolverhampton City Council","http://opendatacommunities.org/id/metropolitan-district-council/wolverhampton","704163","Hays Specialist Recruitment Limited","1007926065","510.50","Agency Staff","130193843","29/11/2017","The Hub","Payroll/HR","R1100"
"Wolverhampton City Council","http://opendatacommunities.org/id/metropolitan-district-council/wolverhampton","704163","Hays Specialist Recruitment Limited","1008014504","532.06","Agency Staff","130194188","29/11/2017","The Hub","Payroll/HR","R1100"
"Wolverhampton City Council","http://opendatacommunities.org/id/metropolitan-district-council/wolverhampton","704163","Hays Specialist Recruitment Limited","1007947014","452.85","Agency Staff","130190654","01/11/2017","The Hub","Payroll/HR","R1100"
"Wolverhampton City Council","http://opendatacommunities.org/id/metropolitan-district-council/wolverhampton","704163","Hays Specialist Recruitment Limited","1008025653","713.00","Agency Staff","130194189","29/11/2017","The Hub","Payroll/HR","R1100"
"Wolverhampton City Council","http://opendatacommunities.org/id/metropolitan-district-council/wolverhampton","704163","Hays Specialist Recruitment Limited","1008025398","305.58","Agency Staff","130194335","29/11/2017","The Hub","Payroll/HR","R1100"
"Wolverhampton City Council","http://opendatacommunities.org/id/metropolitan-district-council/wolverhampton","704163","Hays Specialist Recruitment Limited","1007991004","41.46","Services - Professional Fees","130192542","15/11/2017","Early Intervention","EIP Locality 2 � Bilston/Rocket Pool","R4400"
"Wolverhampton City Council","http://opendatacommunities.org/id/metropolitan-district-council/wolverhampton","704163","Hays Specialist Recruitment Limited","1007451993","27.72","Services - Professional Fees","130194187","03/11/2017","Early Intervention","EIP Locality 1 - Eastfields","R4400"
"Wolverhampton City Council","http://opendatacommunities.org/id/metropolitan-district-council/wolverhampton","704163","Hays Specialist Recruitment Limited","1007912266","532.07","Agency Staff","130193993","29/11/2017","The Hub","Payroll/HR","R1100"
"Wolverhampton City Council","http://opendatacommunities.org/id/metropolitan-district-council/wolverhampton","704163","Hays Specialist Recruitment Limited","1007972457","107.11","Services - Professional Fees","130191743","08/11/2017","Early Intervention","EIP Locality 1 - Eastfields","R4400"
"Wolverhampton City Council","http://opendatacommunities.org/id/metropolitan-district-council/wolverhampton","704163","Hays Specialist Recruitment Limited","1007959772","93.56","Services - Professional Fees","130192066","10/11/2017","Early Intervention","EIP Locality 1 - Eastfields","R4400"
"Wolverhampton City Council","http://opendatacommunities.org/id/metropolitan-district-council/wolverhampton","704163","Hays Specialist Recruitment Limited","1008030907","34.55","Services - Professional Fees","130194190","29/11/2017","Early Intervention","EIP Locality 1 - Eastfields","R4400"
"Wolverhampton City Council","http://opendatacommunities.org/id/metropolitan-district-council/wolverhampton","704163","Hays Specialist Recruitment Limited","1007967698","61.68","Services - Professional Fees","130191741","08/11/2017","Early Intervention","EIP Locality 1 - Eastfields","R4400"
"Wolverhampton City Council","http://opendatacommunities.org/id/metropolitan-district-council/wolverhampton","704163","Hays Specialist Recruitment Limited","1007995188","532.07","Agency Staff","130193446","22/11/2017","The Hub","Payroll/HR","R1100"
"Wolverhampton City Council","http://opendatacommunities.org/id/metropolitan-district-council/wolverhampton","704163","Hays Specialist Recruitment Limited","1008014144","31.88","Services - Professional Fees","130193447","22/11/2017","Early Intervention","EIP Locality 1 - Eastfields","R4400"
"Wolverhampton City Council","http://opendatacommunities.org/id/metropolitan-district-council/wolverhampton","704163","Hays Specialist Recruitment Limited","1008014427","61.68","Services - Professional Fees","130193449","22/11/2017","Early Intervention","EIP Locality 1 - Eastfields","R4400"
"Wolverhampton City Council","http://opendatacommunities.org/id/metropolitan-district-council/wolverhampton","704163","Hays Specialist Recruitment Limited","1007995202","713.00","Agency Staff","130192543","15/11/2017","The Hub","Payroll/HR","R1100"
"Wolverhampton City Council","http://opendatacommunities.org/id/metropolitan-district-council/wolverhampton","704163","Hays Specialist Recruitment Limited","1007990806","41.46","Services - Professional Fees","130192541","15/11/2017","Early Intervention","EIP Locality 1 - Eastfields","R4400"
"Wolverhampton City Council","http://opendatacommunities.org/id/metropolitan-district-council/wolverhampton","704163","Hays Specialist Recruitment Limited","1007995246","62.37","Services - Professional Fees","130192544","15/11/2017","Early Intervention","EIP Locality 1 - Eastfields","R4400"
"Wolverhampton City Council","http://opendatacommunities.org/id/metropolitan-district-council/wolverhampton","704163","Hays Specialist Recruitment Limited","1007998785","41.97","Services - Professional Fees","130192545","15/11/2017","Early Intervention","EIP Locality 2 � Bilston/Rocket Pool","R4400"
"Wolverhampton City Council","http://opendatacommunities.org/id/metropolitan-district-council/wolverhampton","704163","Hays Specialist Recruitment Limited","1007968795","616.64","Agency Staff","130191742","08/11/2017","The Hub","Payroll/HR","R1100"
"Wolverhampton City Council","http://opendatacommunities.org/id/metropolitan-district-council/wolverhampton","704163","Hays Specialist Recruitment Limited","1007949333","96.74","Services - Professional Fees","130192897","17/11/2017","Early Intervention","EIP Locality 1 - Eastfields","R4400"
"Wolverhampton City Council","http://opendatacommunities.org/id/metropolitan-district-council/wolverhampton","704168","Hbinfo Limited","T/14478","500.00","Training Expenses","130193069","01/11/2017","Human Resources","Centralised Training","R1650"
"Wolverhampton City Council","http://opendatacommunities.org/id/metropolitan-district-council/wolverhampton","704183","Headway Black Country","287120171114","400.00","TPP - Day Care","190392984","15/11/2017","Physical Disabilities Care Purchasing","PD Care Purchasing (Spot Placements)","R5430"
"Wolverhampton City Council","http://opendatacommunities.org/id/metropolitan-district-council/wolverhampton","704183","Headway Black Country","287220171114","200.00","TPP - Day Care","190392985","15/11/2017","Physical Disabilities Care Purchasing","PD Care Purchasing (Spot Placements)","R5430"
"Wolverhampton City Council","http://opendatacommunities.org/id/metropolitan-district-council/wolverhampton","704183","Headway Black Country","287320171114","200.00","TPP - Day Care","190392986","15/11/2017","Physical Disabilities Care Purchasing","PD Care Purchasing (Spot Placements)","R5430"
"Wolverhampton City Council","http://opendatacommunities.org/id/metropolitan-district-council/wolverhampton","704183","Headway Black Country","287320171114","200.00","TPP - Day Care","190392986","15/11/2017","Physical Disabilities Care Purchasing","PD Care Purchasing (Spot Placements)","R5430"
"Wolverhampton City Council","http://opendatacommunities.org/id/metropolitan-district-council/wolverhampton","704183","Headway Black Country","287420171114","400.00","TPP - Day Care","190392987","15/11/2017","Physical Disabilities Care Purchasing","PD Care Purchasing (Spot Placements)","R5430"
"Wolverhampton City Council","http://opendatacommunities.org/id/metropolitan-district-council/wolverhampton","704183","Headway Black Country","287520171114","120.00","TPP - Day Care","190392988","15/11/2017","Physical Disabilities Care Purchasing","PD Care Purchasing (Spot Placements)","R5430"
"Wolverhampton City Council","http://opendatacommunities.org/id/metropolitan-district-council/wolverhampton","704206","Heath Park School (Academy)","P15815820171109","600.00","Grant Payments to Individuals","190391805","10/11/2017","Looked After Children","LAC Education Team (LACE)","R6402"
"Wolverhampton City Council","http://opendatacommunities.org/id/metropolitan-district-council/wolverhampton","704206","Heath Park School (Academy)","P15815820171109","600.00","Grant Payments to Individuals","190391805","10/11/2017","Looked After Children","LAC Education Team (LACE)","R6402"
"Wolverhampton City Council","http://opendatacommunities.org/id/metropolitan-district-council/wolverhampton","704206","Heath Park School (Academy)","P15815820171109","600.00","Grant Payments to Individuals","190391805","10/11/2017","Looked After Children","LAC Education Team (LACE)","R6402"
"Wolverhampton City Council","http://opendatacommunities.org/id/metropolitan-district-council/wolverhampton","704206","Heath Park School (Academy)","P15815820171109","600.00","Grant Payments to Individuals","190391805","10/11/2017","Looked After Children","LAC Education Team (LACE)","R6402"
"Wolverhampton City Council","http://opendatacommunities.org/id/metropolitan-district-council/wolverhampton","704206","Heath Park School (Academy)","P15815820171109","600.00","Grant Payments to Individuals","190391805","10/11/2017","Looked After Children","LAC Education Team (LACE)","R6402"
"Wolverhampton City Council","http://opendatacommunities.org/id/metropolitan-district-council/wolverhampton","704206","Heath Park School (Academy)","P15815820171109","600.00","Grant Payments to Individuals","190391805","10/11/2017","Looked After Children","LAC Education Team (LACE)","R6402"
"Wolverhampton City Council","http://opendatacommunities.org/id/metropolitan-district-council/wolverhampton","704206","Heath Park School (Academy)","P15815820171109","600.00","Grant Payments to Individuals","190391805","10/11/2017","Looked After Children","LAC Education Team (LACE)","R6402"
"Wolverhampton City Council","http://opendatacommunities.org/id/metropolitan-district-council/wolverhampton","704206","Heath Park School (Academy)","P15815820171109","600.00","Grant Payments to Individuals","190391805","10/11/2017","Looked After Children","LAC Education Team (LACE)","R6402"
"Wolverhampton City Council","http://opendatacommunities.org/id/metropolitan-district-council/wolverhampton","704206","Heath Park School (Academy)","P15956120171127","600.00","Grant Payments to Individuals","190397974","29/11/2017","Looked After Children","LAC Education Team (LACE)","R6402"
"Wolverhampton City Council","http://opendatacommunities.org/id/metropolitan-district-council/wolverhampton","704207","Heath Town Snr Citizens Welfare Proj","00017/1820171115","207.00","TPP - Day Care","190393431","17/11/2017","Older People Care Purchasing","OP Care Purchasing (Spot Placements)","R5430"
"Wolverhampton City Council","http://opendatacommunities.org/id/metropolitan-district-council/wolverhampton","704207","Heath Town Snr Citizens Welfare Proj","00017/1820171115","230.00","TPP - Day Care","190393431","17/11/2017","Older People Care Purchasing","OP Care Purchasing (Spot Placements)","R5430"
"Wolverhampton City Council","http://opendatacommunities.org/id/metropolitan-district-council/wolverhampton","704207","Heath Town Snr Citizens Welfare Proj","00017/1820171115","345.00","TPP - Day Care","190393431","17/11/2017","Older People Care Purchasing","OP Care Purchasing (Spot Placements)","R5430"
"Wolverhampton City Council","http://opendatacommunities.org/id/metropolitan-district-council/wolverhampton","704207","Heath Town Snr Citizens Welfare Proj","00017/1820171115","299.00","TPP - Day Care","190393431","17/11/2017","Older People Care Purchasing","OP Care Purchasing (Spot Placements)","R5430"
"Wolverhampton City Council","http://opendatacommunities.org/id/metropolitan-district-council/wolverhampton","704207","Heath Town Snr Citizens Welfare Proj","00017/1820171115","23.00","TPP - Day Care","190393431","17/11/2017","Older People Care Purchasing","OP Care Purchasing (Spot Placements)","R5430"
"Wolverhampton City Council","http://opendatacommunities.org/id/metropolitan-district-council/wolverhampton","704207","Heath Town Snr Citizens Welfare Proj","00017/1820171115","207.00","TPP - Day Care","190393431","17/11/2017","Older People Care Purchasing","OP Care Purchasing (Spot Placements)","R5430"
"Wolverhampton City Council","http://opendatacommunities.org/id/metropolitan-district-council/wolverhampton","704207","Heath Town Snr Citizens Welfare Proj","00017/1820171115","230.00","TPP - Day Care","190393431","17/11/2017","Older People Care Purchasing","OP Care Purchasing (Spot Placements)","R5430"
"Wolverhampton City Council","http://opendatacommunities.org/id/metropolitan-district-council/wolverhampton","704207","Heath Town Snr Citizens Welfare Proj","00017/1820171115","207.00","TPP - Day Care","190393431","17/11/2017","Older People Care Purchasing","OP Care Purchasing (Spot Placements)","R5430"
"Wolverhampton City Council","http://opendatacommunities.org/id/metropolitan-district-council/wolverhampton","704207","Heath Town Snr Citizens Welfare Proj","00017/1820171115","345.00","TPP - Day Care","190393431","17/11/2017","Older People Care Purchasing","OP Care Purchasing (Spot Placements)","R5430"
"Wolverhampton City Council","http://opendatacommunities.org/id/metropolitan-district-council/wolverhampton","704207","Heath Town Snr Citizens Welfare Proj","00017/1820171115","161.00","TPP - Day Care","190393431","17/11/2017","Older People Care Purchasing","OP Care Purchasing (Spot Placements)","R5430"
"Wolverhampton City Council","http://opendatacommunities.org/id/metropolitan-district-council/wolverhampton","704207","Heath Town Snr Citizens Welfare Proj","00017/1820171115","230.00","TPP - Day Care","190393431","17/11/2017","Older People Care Purchasing","OP Care Purchasing (Spot Placements)","R5430"
"Wolverhampton City Council","http://opendatacommunities.org/id/metropolitan-district-council/wolverhampton","704207","Heath Town Snr Citizens Welfare Proj","00017/1820171115","115.00","TPP - Day Care","190393431","17/11/2017","Older People Care Purchasing","OP Care Purchasing (Spot Placements)","R5430"
"Wolverhampton City Council","http://opendatacommunities.org/id/metropolitan-district-council/wolverhampton","704207","Heath Town Snr Citizens Welfare Proj","00017/1820171115","115.00","TPP - Day Care","190393431","17/11/2017","Older People Care Purchasing","OP Care Purchasing (Spot Placements)","R5430"
"Wolverhampton City Council","http://opendatacommunities.org/id/metropolitan-district-council/wolverhampton","704207","Heath Town Snr Citizens Welfare Proj","00017/1820171115","115.00","TPP - Day Care","190393431","17/11/2017","Older People Care Purchasing","OP Care Purchasing (Spot Placements)","R5430"
"Wolverhampton City Council","http://opendatacommunities.org/id/metropolitan-district-council/wolverhampton","704207","Heath Town Snr Citizens Welfare Proj","00017/1820171115","69.00","TPP - Day Care","190393431","17/11/2017","Older People Care Purchasing","OP Care Purchasing (Spot Placements)","R5430"
"Wolverhampton City Council","http://opendatacommunities.org/id/metropolitan-district-council/wolverhampton","704207","Heath Town Snr Citizens Welfare Proj","00017/1820171115","92.00","TPP - Day Care","190393431","17/11/2017","Older People Care Purchasing","OP Care Purchasing (Spot Placements)","R5430"
"Wolverhampton City Council","http://opendatacommunities.org/id/metropolitan-district-council/wolverhampton","704207","Heath Town Snr Citizens Welfare Proj","00017/1820171115","115.00","TPP - Day Care","190393431","17/11/2017","Older People Care Purchasing","OP Care Purchasing (Spot Placements)","R5430"
"Wolverhampton City Council","http://opendatacommunities.org/id/metropolitan-district-council/wolverhampton","704207","Heath Town Snr Citizens Welfare Proj","00017/1820171115","69.00","TPP - Day Care","190393431","17/11/2017","Older People Care Purchasing","OP Care Purchasing (Spot Placements)","R5430"
"Wolverhampton City Council","http://opendatacommunities.org/id/metropolitan-district-council/wolverhampton","704207","Heath Town Snr Citizens Welfare Proj","00017/1820171115","230.00","TPP - Day Care","190393431","17/11/2017","Older People Care Purchasing","OP Care Purchasing (Spot Placements)","R5430"
"Wolverhampton City Council","http://opendatacommunities.org/id/metropolitan-district-council/wolverhampton","704207","Heath Town Snr Citizens Welfare Proj","00017/1820171115","138.00","TPP - Day Care","190393431","17/11/2017","Older People Care Purchasing","OP Care Purchasing (Spot Placements)","R5430"
"Wolverhampton City Council","http://opendatacommunities.org/id/metropolitan-district-council/wolverhampton","704207","Heath Town Snr Citizens Welfare Proj","00017/1820171115","23.00","TPP - Day Care","190393431","17/11/2017","Older People Care Purchasing","OP Care Purchasing (Spot Placements)","R5430"
"Wolverhampton City Council","http://opendatacommunities.org/id/metropolitan-district-council/wolverhampton","704207","Heath Town Snr Citizens Welfare Proj","00017/1820171115","230.00","TPP - Day Care","190393431","17/11/2017","Older People Care Purchasing","OP Care Purchasing (Spot Placements)","R5430"
"Wolverhampton City Council","http://opendatacommunities.org/id/metropolitan-district-council/wolverhampton","704227","Hemming Group Limited","PK11009","1,666.67","Staff Advertising Costs","130196898","29/11/2017","Service Director City Environment","Service Director City Environment","R1700"
"Wolverhampton City Council","http://opendatacommunities.org/id/metropolitan-district-council/wolverhampton","704227","Hemming Group Limited","PK11009","1,666.67","Staff Advertising Costs","130196898","29/11/2017","Head of Corporate Landlord","Head of Corporate Landlord","R1700"
"Wolverhampton City Council","http://opendatacommunities.org/id/metropolitan-district-council/wolverhampton","704227","Hemming Group Limited","PK11009","833.33","Staff Advertising Costs","130196898","29/11/2017","Housing","General Housing Administration","R1700"
"Wolverhampton City Council","http://opendatacommunities.org/id/metropolitan-district-council/wolverhampton","704227","Hemming Group Limited","PK11009","833.33","Staff Advertising Costs","130196898","29/11/2017","Director of Education","Director of Education","R1700"
"Wolverhampton City Council","http://opendatacommunities.org/id/metropolitan-district-council/wolverhampton","704234","Herefordshire Council","91193397","21,900.00","TPP - Payments to Local Authorities","130195141","15/11/2017","Standards and Vulnerable Pupils","SEN Education OOC","R5100"
"Wolverhampton City Council","http://opendatacommunities.org/id/metropolitan-district-council/wolverhampton","704248","Higgs & Sons Solicitors","74915186","225.00","Services - Professional Fees","130195326","29/11/2017","Human Resources","HR Advice","R4400"
"Wolverhampton City Council","http://opendatacommunities.org/id/metropolitan-district-council/wolverhampton","704253","Highway Electrical Assoc (Heasn) Limited","38519","181.00","TPP - Maintenance Contractor - General","130195543","22/11/2017","Operation & Maintenance of Existing Network","UTC Wolverhampton","R5720"
"Wolverhampton City Council","http://opendatacommunities.org/id/metropolitan-district-council/wolverhampton","704266","Hills Coaches Limited","31734","120.00","Client Transport","130194806","17/11/2017","Governance Services","Democratic Support","R3042"
"Wolverhampton City Council","http://opendatacommunities.org/id/metropolitan-district-council/wolverhampton","704266","Hills Coaches Limited","31701","1,640.00","Client Transport","130194191","29/11/2017","School Planning & Resources","Towers Outdoor Education Centre","R3042"
"Wolverhampton City Council","http://opendatacommunities.org/id/metropolitan-district-council/wolverhampton","704266","Hills Coaches Limited","31475","820.00","Client Transport","130190157","08/11/2017","School Planning & Resources","Towers Outdoor Education Centre","R3042"
"Wolverhampton City Council","http://opendatacommunities.org/id/metropolitan-district-council/wolverhampton","704266","Hills Coaches Limited","31688","2,800.00","Client Transport","130193845","08/11/2017","School Planning & Resources","Special - Transport","R3042"
"Wolverhampton City Council","http://opendatacommunities.org/id/metropolitan-district-council/wolverhampton","704271","Hilton Main Construction Limited","31329","417.17","R&M - Departmental response (external)","130192546","15/11/2017","Facilities Management","Caretakers Community Centre","R2003"
"Wolverhampton City Council","http://opendatacommunities.org/id/metropolitan-district-council/wolverhampton","704271","Hilton Main Construction Limited","29544","2,040.16","R&M - Departmental response (external)","130181180","01/11/2017","Highways Maintenance","Winter Maintenance","R2003"
"Wolverhampton City Council","http://opendatacommunities.org/id/metropolitan-district-council/wolverhampton","704271","Hilton Main Construction Limited","31378","1,333.64","Construction and Conversion","130193453","22/11/2017","-","Integrated Transport","C1100"
"Wolverhampton City Council","http://opendatacommunities.org/id/metropolitan-district-council/wolverhampton","704271","Hilton Main Construction Limited","31377","1,410.18","R&M - Departmental response (external)","130193452","22/11/2017","Transportation","Bridges & Subways","R2003"
"Wolverhampton City Council","http://opendatacommunities.org/id/metropolitan-district-council/wolverhampton","704271","Hilton Main Construction Limited","31362","866.72","R&M - Departmental response (external)","130193071","17/11/2017","City Development","Strategic Asset Management - Bilston Town Centre Regen","R2003"
"Wolverhampton City Council","http://opendatacommunities.org/id/metropolitan-district-council/wolverhampton","704271","Hilton Main Construction Limited","30795","7,252.32","R&M - Departmental response (external)","130194807","17/11/2017","Highways Maintenance","Patching","R2003"
"Wolverhampton City Council","http://opendatacommunities.org/id/metropolitan-district-council/wolverhampton","704271","Hilton Main Construction Limited","31327","846.00","R&M - Departmental response (external)","130192263","10/11/2017","Highways Maintenance","Brook course, Culvert & Subway Maintenance","R2003"
"Wolverhampton City Council","http://opendatacommunities.org/id/metropolitan-district-council/wolverhampton","704271","Hilton Main Construction Limited","31438","6,752.16","R&M - Departmental response (external)","130194266","24/11/2017","Highways Maintenance","Patching","R2003"
"Wolverhampton City Council","http://opendatacommunities.org/id/metropolitan-district-council/wolverhampton","704271","Hilton Main Construction Limited","31330","1,274.00","R&M - Departmental planned (external)","130192547","15/11/2017","Parking Services","Short Stay - Fold Street","R2001"
"Wolverhampton City Council","http://opendatacommunities.org/id/metropolitan-district-council/wolverhampton","704271","Hilton Main Construction Limited","31330","2,824.00","R&M - Departmental planned (external)","130192547","15/11/2017","Parking Services","Short Stay - Fold Street","R2001"
"Wolverhampton City Council","http://opendatacommunities.org/id/metropolitan-district-council/wolverhampton","704271","Hilton Main Construction Limited","31417","876.50","R&M - Departmental response (external)","130194280","22/11/2017","Facilities Management","Hickman Avenue Depot","R2003"
"Wolverhampton City Council","http://opendatacommunities.org/id/metropolitan-district-council/wolverhampton","704271","Hilton Main Construction Limited","31415","1,320.00","R&M - Departmental response (external)","130194274","22/11/2017","Facilities Management","Management of Vacant Properties","R2003"
"Wolverhampton City Council","http://opendatacommunities.org/id/metropolitan-district-council/wolverhampton","704271","Hilton Main Construction Limited","31416","2,700.00","R&M - Departmental response (external)","130194275","22/11/2017","Facilities Management","Hickman Avenue Depot","R2003"
"Wolverhampton City Council","http://opendatacommunities.org/id/metropolitan-district-council/wolverhampton","704271","Hilton Main Construction Limited","31311","910.60","R&M - Departmental response (external)","130191894","08/11/2017","Highways Maintenance","Planned Highways Maintenance","R2003"
"Wolverhampton City Council","http://opendatacommunities.org/id/metropolitan-district-council/wolverhampton","704271","Hilton Main Construction Limited","31361","3,742.50","R&M - Departmental planned (external)","130193070","17/11/2017","Facilities Management","Culwell Street Depot","R2001"
"Wolverhampton City Council","http://opendatacommunities.org/id/metropolitan-district-council/wolverhampton","704271","Hilton Main Construction Limited","31372","1,300.00","Hire of Vehicles","190392514","15/11/2017","Fleet Services","Fleet Management","R3200"
"Wolverhampton City Council","http://opendatacommunities.org/id/metropolitan-district-council/wolverhampton","704271","Hilton Main Construction Limited","31373","1,300.00","Hire of Vehicles","190392515","15/11/2017","Fleet Services","Fleet Management","R3200"
"Wolverhampton City Council","http://opendatacommunities.org/id/metropolitan-district-council/wolverhampton","704271","Hilton Main Construction Limited","31027","1,966.40","R&M - Departmental response (external)","130187029","03/11/2017","Highways Maintenance","Brook course, Culvert & Subway Maintenance","R2003"
"Wolverhampton City Council","http://opendatacommunities.org/id/metropolitan-district-council/wolverhampton","704271","Hilton Main Construction Limited","31436","7,760.00","R&M - Departmental response (external)","130194268","24/11/2017","Highways Maintenance","Patching","R2003"
"Wolverhampton City Council","http://opendatacommunities.org/id/metropolitan-district-council/wolverhampton","704271","Hilton Main Construction Limited","30425","5,021.44","R&M - Departmental response (external)","130174461","24/11/2017","Highways Maintenance","Planned Highways Maintenance","R2003"
"Wolverhampton City Council","http://opendatacommunities.org/id/metropolitan-district-council/wolverhampton","704271","Hilton Main Construction Limited","31434","11,783.02","R&M - Departmental response (external)","130194273","29/11/2017","Highways Maintenance","Gully Sweeping","R2003"
"Wolverhampton City Council","http://opendatacommunities.org/id/metropolitan-district-council/wolverhampton","704271","Hilton Main Construction Limited","31257","335.00","R&M - Departmental response (external)","130194808","29/11/2017","Facilities Management","Hickman Avenue Depot","R2003"
"Wolverhampton City Council","http://opendatacommunities.org/id/metropolitan-district-council/wolverhampton","704271","Hilton Main Construction Limited","31371","4,518.25","R&M - Departmental response (external)","130193451","22/11/2017","School Planning & Resources","Primary Expansion Feasibility Work","R2003"
"Wolverhampton City Council","http://opendatacommunities.org/id/metropolitan-district-council/wolverhampton","704289","HMCTS","001Lubke","400.00","Services - Fees and Charges","190397777","29/11/2017","Safeguarding","Court of Protection, Funerals and Protection of Property","R4401"
"Wolverhampton City Council","http://opendatacommunities.org/id/metropolitan-district-council/wolverhampton","704289","HMCTS","WEBB001","400.00","Services - Fees and Charges","190391789","10/11/2017","Safeguarding","Court of Protection, Funerals and Protection of Property","R4401"
"Wolverhampton City Council","http://opendatacommunities.org/id/metropolitan-district-council/wolverhampton","704318","Homepoint Estate Agents","4010","475.00","Accommodation Costs","130193995","24/11/2017","Child Protection","CIN/CP Social Work Unit - Area 5","R4900"
"Wolverhampton City Council","http://opendatacommunities.org/id/metropolitan-district-council/wolverhampton","704318","Homepoint Estate Agents","2656","1,104.00","No Recourse to Public Funds","130193846","22/11/2017","Child Protection","CIN/CP Social Work Unit - Area 3","R6314"
"Wolverhampton City Council","http://opendatacommunities.org/id/metropolitan-district-council/wolverhampton","704318","Homepoint Estate Agents","4005","475.00","Accommodation Costs","130191316","01/11/2017","Child Protection","CIN/CP Social Work Unit - Area 5","R4900"
"Wolverhampton City Council","http://opendatacommunities.org/id/metropolitan-district-council/wolverhampton","704323","Hopcraft Memorials Limited","HM0334","422.00","Materials","130193692","01/11/2017","Bereavement Services","Cemeteries","R4007"
"Wolverhampton City Council","http://opendatacommunities.org/id/metropolitan-district-council/wolverhampton","704323","Hopcraft Memorials Limited","HM0336","160.00","Materials","130195888","22/11/2017","Bereavement Services","Cemeteries","R4007"
"Wolverhampton City Council","http://opendatacommunities.org/id/metropolitan-district-council/wolverhampton","704323","Hopcraft Memorials Limited","HM0338","45.00","Materials","130195890","22/11/2017","Bereavement Services","Cemeteries","R4007"
"Wolverhampton City Council","http://opendatacommunities.org/id/metropolitan-district-council/wolverhampton","704324","Hope Community Project Wolverhampton","H00021","1,002.00","TPP - Social Care Support Services","130193315","08/11/2017","Early Intervention","Transformation Challenge Award","R5501"
"Wolverhampton City Council","http://opendatacommunities.org/id/metropolitan-district-council/wolverhampton","704324","Hope Community Project Wolverhampton","H00014","600.00","Education trips, Holidays, Outings & Activities","130195142","17/11/2017","Early Intervention","EIP Locality 4 - Bingley","R4970"
"Wolverhampton City Council","http://opendatacommunities.org/id/metropolitan-district-council/wolverhampton","704350","HS Sports Limited","119208","1,550.00","R&M - Departmental planned (external)","130191540","22/11/2017","Leisure Services","Central Baths","R2001"
"Wolverhampton City Council","http://opendatacommunities.org/id/metropolitan-district-council/wolverhampton","704401","Ian Livie","INV10495","800.00","Equipment - Hire","130191541","03/11/2017","Visitor Economy","Civic Halls - CHIP","R4001"
"Wolverhampton City Council","http://opendatacommunities.org/id/metropolitan-district-council/wolverhampton","704401","Ian Livie","INV10496","1,838.56","Equipment - Purchase","130191542","03/11/2017","Visitor Economy","Civic Halls Non-Direct Event Management Account","R4000"
"Wolverhampton City Council","http://opendatacommunities.org/id/metropolitan-district-council/wolverhampton","704426","Idox Software Limited","7016966","9,375.00","Computing - Maint Agreements","130193072","15/11/2017","Licensing","Licensing - Private Hire Vehicles","R4534"
"Wolverhampton City Council","http://opendatacommunities.org/id/metropolitan-district-council/wolverhampton","704426","Idox Software Limited","7017099","3,450.00","Computing - Maint Agreements","130193073","17/11/2017","ICTS","Strategic ICTS (ICT Service Budget)","R4534"
"Wolverhampton City Council","http://opendatacommunities.org/id/metropolitan-district-council/wolverhampton","704456","Improvement & Development Agency:Ida","40218575","7,835.36","Services - Professional Fees","130192898","08/11/2017","Governance Services","Equalities","R4400"
"Wolverhampton City Council","http://opendatacommunities.org/id/metropolitan-district-council/wolverhampton","704457","Imtech Traffic & Infra UK Limited (Peek)","17005697","4,976.88","Construction and Conversion","130192068","08/11/2017","-","GF - Managing Short Trips","C1100"
"Wolverhampton City Council","http://opendatacommunities.org/id/metropolitan-district-council/wolverhampton","704469","Indespension Limited","2341384","36.25","Equipment - Purchase","190388913","01/11/2017","Fleet Services","Fleet Management","R4000"
"Wolverhampton City Council","http://opendatacommunities.org/id/metropolitan-district-council/wolverhampton","704469","Indespension Limited","2341846","166.67","Equipment - Purchase","190388914","01/11/2017","Fleet Services","Fleet Management","R4000"
"Wolverhampton City Council","http://opendatacommunities.org/id/metropolitan-district-council/wolverhampton","704469","Indespension Limited","2341846","17.28","Equipment - Purchase","190388914","01/11/2017","Fleet Services","Fleet Management","R4000"
"Wolverhampton City Council","http://opendatacommunities.org/id/metropolitan-district-council/wolverhampton","704469","Indespension Limited","2348638","11.00","Equipment - Purchase","190397169","24/11/2017","Fleet Services","Fleet Management","R4000"
"Wolverhampton City Council","http://opendatacommunities.org/id/metropolitan-district-council/wolverhampton","704469","Indespension Limited","2348638","13.70","Equipment - Purchase","190397169","24/11/2017","Fleet Services","Fleet Management","R4000"
"Wolverhampton City Council","http://opendatacommunities.org/id/metropolitan-district-council/wolverhampton","704469","Indespension Limited","2345212","19.25","Equipment - Purchase","190393173","15/11/2017","Fleet Services","Fleet Management","R4000"
"Wolverhampton City Council","http://opendatacommunities.org/id/metropolitan-district-council/wolverhampton","704469","Indespension Limited","2345525","18.44","Equipment - Purchase","190393174","15/11/2017","Fleet Services","Fleet Management","R4000"
"Wolverhampton City Council","http://opendatacommunities.org/id/metropolitan-district-council/wolverhampton","704469","Indespension Limited","2346441","37.00","Equipment - Purchase","190395094","22/11/2017","Fleet Services","Fleet Management","R4000"
"Wolverhampton City Council","http://opendatacommunities.org/id/metropolitan-district-council/wolverhampton","704487","Initial Fire Systems Limited","95582","140.00","Equipment - Purchase","130192735","15/11/2017","Headstart","Headstart Phase 3","R4000"
"Wolverhampton City Council","http://opendatacommunities.org/id/metropolitan-district-council/wolverhampton","704488","Initial Projects Limited T/A Enitial","76228","350.00","Equipment - R & M","130193316","17/11/2017","Public Protection","Contaminated Land","R4003"
"Wolverhampton City Council","http://opendatacommunities.org/id/metropolitan-district-council/wolverhampton","704488","Initial Projects Limited T/A Enitial","76341","225.00","Services - Professional Fees","130194603","29/11/2017","Public Protection","Bowmans Harbour","R4400"
"Wolverhampton City Council","http://opendatacommunities.org/id/metropolitan-district-council/wolverhampton","704488","Initial Projects Limited T/A Enitial","76252","250.00","Equipment - R & M","130194336","29/11/2017","Public Protection","Contaminated Land","R4003"
"Wolverhampton City Council","http://opendatacommunities.org/id/metropolitan-district-council/wolverhampton","704488","Initial Projects Limited T/A Enitial","76254","170.37","Equipment - R & M","130194475","29/11/2017","Public Protection","Bowmans Harbour","R4003"
"Wolverhampton City Council","http://opendatacommunities.org/id/metropolitan-district-council/wolverhampton","704488","Initial Projects Limited T/A Enitial","76253","480.00","Equipment - R & M","130194337","29/11/2017","Public Protection","Contaminated Land","R4003"
"Wolverhampton City Council","http://opendatacommunities.org/id/metropolitan-district-council/wolverhampton","704489","Initial Washroom Solutions","32509427","133.75","Cleaning Supplies and Materials","130192069","03/11/2017","Highways Maintenance","Patching","R2705"
"Wolverhampton City Council","http://opendatacommunities.org/id/metropolitan-district-council/wolverhampton","704489","Initial Washroom Solutions","32490267","43.91","Cleaning Supplies and Materials","130193317","01/11/2017","Facilities Management","Hickman Avenue Depot","R2705"
"Wolverhampton City Council","http://opendatacommunities.org/id/metropolitan-district-council/wolverhampton","704489","Initial Washroom Solutions","31969845","33.11","Cleaning Supplies and Materials","130189116","01/11/2017","Adults Assessment & Care Management North","Assessment Team (North)","R2705"
"Wolverhampton City Council","http://opendatacommunities.org/id/metropolitan-district-council/wolverhampton","704489","Initial Washroom Solutions","32520904","70.09","Cleaning Supplies and Materials","130196246","22/11/2017","Facilities Management","Culwell Street Depot","R2705"
"Wolverhampton City Council","http://opendatacommunities.org/id/metropolitan-district-council/wolverhampton","704489","Initial Washroom Solutions","32520906","63.19","Cleaning Supplies and Materials","130196247","22/11/2017","Facilities Management","Hickman Avenue Depot","R2705"
"Wolverhampton City Council","http://opendatacommunities.org/id/metropolitan-district-council/wolverhampton","704489","Initial Washroom Solutions","32294629","27.31","Cleaning Supplies and Materials","130163620","15/11/2017","Adults Assessment & Care Management North","Assessment Team (North)","R2705"
"Wolverhampton City Council","http://opendatacommunities.org/id/metropolitan-district-council/wolverhampton","704510","Instarmac Group PLC","606011","567.60","Materials","130193847","01/11/2017","Street Lighting","Signs Illuminated","R4007"
"Wolverhampton City Council","http://opendatacommunities.org/id/metropolitan-district-council/wolverhampton","704524","Integrated Water Services Limited","CD200043131","752.00","R&M - Departmental planned (external)","130196393","29/11/2017","Maintenance Programme","Centralised R&M","R2001"
"Wolverhampton City Council","http://opendatacommunities.org/id/metropolitan-district-council/wolverhampton","704524","Integrated Water Services Limited","CD200029615","116.24","R&M - Departmental planned (external)","130196389","22/11/2017","Facilities Management","Civic Centre","R2001"
"Wolverhampton City Council","http://opendatacommunities.org/id/metropolitan-district-council/wolverhampton","704524","Integrated Water Services Limited","CD200029616","161.59","R&M - Departmental planned (external)","130196390","22/11/2017","Maintenance Programme","Centralised R&M","R2001"
"Wolverhampton City Council","http://opendatacommunities.org/id/metropolitan-district-council/wolverhampton","704524","Integrated Water Services Limited","CD200034285","240.00","R&M - Departmental planned (external)","130196392","22/11/2017","Cleaning","Priory Green","R2001"
"Wolverhampton City Council","http://opendatacommunities.org/id/metropolitan-district-council/wolverhampton","704524","Integrated Water Services Limited","CD200059237","406.00","R&M - Departmental planned (external)","130191744","08/11/2017","Maintenance Programme","Centralised R&M","R2001"
"Wolverhampton City Council","http://opendatacommunities.org/id/metropolitan-district-council/wolverhampton","704524","Integrated Water Services Limited","CD200059236","406.00","R&M - Departmental planned (external)","130191898","08/11/2017","Maintenance Programme","Centralised R&M","R2001"
"Wolverhampton City Council","http://opendatacommunities.org/id/metropolitan-district-council/wolverhampton","704524","Integrated Water Services Limited","CD200059235","406.00","R&M - Departmental planned (external)","130191897","08/11/2017","Maintenance Programme","Centralised R&M","R2001"
"Wolverhampton City Council","http://opendatacommunities.org/id/metropolitan-district-council/wolverhampton","704524","Integrated Water Services Limited","CD200059103","180.00","R&M - Departmental planned (external)","130191543","01/11/2017","Maintenance Programme","Centralised R&M","R2001"
"Wolverhampton City Council","http://opendatacommunities.org/id/metropolitan-district-council/wolverhampton","704524","Integrated Water Services Limited","CD200059107","180.00","R&M - Departmental planned (external)","130191318","01/11/2017","Maintenance Programme","Centralised R&M","R2001"
"Wolverhampton City Council","http://opendatacommunities.org/id/metropolitan-district-council/wolverhampton","704524","Integrated Water Services Limited","CD200059110","180.00","R&M - Departmental planned (external)","130191319","01/11/2017","Maintenance Programme","Centralised R&M","R2001"
"Wolverhampton City Council","http://opendatacommunities.org/id/metropolitan-district-council/wolverhampton","704524","Integrated Water Services Limited","CD200061940","406.00","R&M - Departmental planned (external)","130194338","29/11/2017","Maintenance Programme","Centralised R&M","R2001"
"Wolverhampton City Council","http://opendatacommunities.org/id/metropolitan-district-council/wolverhampton","704524","Integrated Water Services Limited","CD200021070","4,789.75","R&M - Departmental planned (external)","130196387","29/11/2017","Facilities Management","Civic Centre","R2001"
"Wolverhampton City Council","http://opendatacommunities.org/id/metropolitan-district-council/wolverhampton","704524","Integrated Water Services Limited","CD200042094","1,092.00","R&M - Departmental planned (external)","130172200","29/11/2017","Maintenance Programme","Civic Centre Repairs & Maintenance","R2001"
"Wolverhampton City Council","http://opendatacommunities.org/id/metropolitan-district-council/wolverhampton","704524","Integrated Water Services Limited","CD-970005959","600.00","R&M - Departmental planned (external)","130194339","08/11/2017","Facilities Management","Civic Centre","R2001"
"Wolverhampton City Council","http://opendatacommunities.org/id/metropolitan-district-council/wolverhampton","704524","Integrated Water Services Limited","CD200059117","480.00","R&M - Departmental planned (external)","130191320","01/11/2017","Maintenance Programme","Centralised R&M","R2001"
"Wolverhampton City Council","http://opendatacommunities.org/id/metropolitan-district-council/wolverhampton","704524","Integrated Water Services Limited","CD200059117","272.00","R&M - Departmental planned (external)","130191320","01/11/2017","Maintenance Programme","Centralised R&M","R2001"
"Wolverhampton City Council","http://opendatacommunities.org/id/metropolitan-district-council/wolverhampton","704537","Interclass PLC","10889","83,247.77","Construction and Conversion","130196518","29/11/2017","-","Primary Expansion Programme","C1100"
"Wolverhampton City Council","http://opendatacommunities.org/id/metropolitan-district-council/wolverhampton","704545","Interwaste Municipal Limitedc/O Fleet Ca","24376","99.50","Equipment - Purchase","190395097","22/11/2017","Fleet Services","Fleet Management","R4000"
"Wolverhampton City Council","http://opendatacommunities.org/id/metropolitan-district-council/wolverhampton","704545","Interwaste Municipal Limitedc/O Fleet Ca","24376","68.50","Equipment - Purchase","190395097","22/11/2017","Fleet Services","Fleet Management","R4000"
"Wolverhampton City Council","http://opendatacommunities.org/id/metropolitan-district-council/wolverhampton","704545","Interwaste Municipal Limitedc/O Fleet Ca","24376","706.25","Equipment - Purchase","190395097","22/11/2017","Fleet Services","Fleet Management","R4000"
"Wolverhampton City Council","http://opendatacommunities.org/id/metropolitan-district-council/wolverhampton","704545","Interwaste Municipal Limitedc/O Fleet Ca","25503","68.50","Equipment - Purchase","190395098","22/11/2017","Fleet Services","Fleet Management","R4000"
"Wolverhampton City Council","http://opendatacommunities.org/id/metropolitan-district-council/wolverhampton","704545","Interwaste Municipal Limitedc/O Fleet Ca","25452","565.00","Equipment - Purchase","190393182","15/11/2017","Fleet Services","Fleet Management","R4000"
"Wolverhampton City Council","http://opendatacommunities.org/id/metropolitan-district-council/wolverhampton","704545","Interwaste Municipal Limitedc/O Fleet Ca","25453","210.91","Equipment - Purchase","190393183","15/11/2017","Fleet Services","Fleet Management","R4000"
"Wolverhampton City Council","http://opendatacommunities.org/id/metropolitan-district-council/wolverhampton","704545","Interwaste Municipal Limitedc/O Fleet Ca","25442","68.50","Equipment - Purchase","190393181","15/11/2017","Fleet Services","Fleet Management","R4000"
"Wolverhampton City Council","http://opendatacommunities.org/id/metropolitan-district-council/wolverhampton","704545","Interwaste Municipal Limitedc/O Fleet Ca","25366","345.00","Equipment - Purchase","190390213","08/11/2017","Fleet Services","Fleet Management","R4000"
"Wolverhampton City Council","http://opendatacommunities.org/id/metropolitan-district-council/wolverhampton","704545","Interwaste Municipal Limitedc/O Fleet Ca","25367","125.78","Equipment - Purchase","190390214","08/11/2017","Fleet Services","Fleet Management","R4000"
"Wolverhampton City Council","http://opendatacommunities.org/id/metropolitan-district-council/wolverhampton","704545","Interwaste Municipal Limitedc/O Fleet Ca","25243","88.00","Equipment - Purchase","190388920","01/11/2017","Fleet Services","Fleet Management","R4000"
"Wolverhampton City Council","http://opendatacommunities.org/id/metropolitan-district-council/wolverhampton","704545","Interwaste Municipal Limitedc/O Fleet Ca","25467","33.50","Equipment - Purchase","190393959","17/11/2017","Fleet Services","Fleet Management","R4000"
"Wolverhampton City Council","http://opendatacommunities.org/id/metropolitan-district-council/wolverhampton","704545","Interwaste Municipal Limitedc/O Fleet Ca","25467","68.50","Equipment - Purchase","190393959","17/11/2017","Fleet Services","Fleet Management","R4000"
"Wolverhampton City Council","http://opendatacommunities.org/id/metropolitan-district-council/wolverhampton","704545","Interwaste Municipal Limitedc/O Fleet Ca","25467","44.90","Equipment - Purchase","190393959","17/11/2017","Fleet Services","Fleet Management","R4000"
"Wolverhampton City Council","http://opendatacommunities.org/id/metropolitan-district-council/wolverhampton","704545","Interwaste Municipal Limitedc/O Fleet Ca","25467","19.60","Equipment - Purchase","190393959","17/11/2017","Fleet Services","Fleet Management","R4000"
"Wolverhampton City Council","http://opendatacommunities.org/id/metropolitan-district-council/wolverhampton","704545","Interwaste Municipal Limitedc/O Fleet Ca","25467","210.91","Equipment - Purchase","190393959","17/11/2017","Fleet Services","Fleet Management","R4000"
"Wolverhampton City Council","http://opendatacommunities.org/id/metropolitan-district-council/wolverhampton","704593","J Edwards Glass","0000101683","70.00","R&M - Departmental planned (external)","130194604","29/11/2017","Maintenance Programme","Centralised R&M","R2001"
"Wolverhampton City Council","http://opendatacommunities.org/id/metropolitan-district-council/wolverhampton","704593","J Edwards Glass","0000101725","45.00","R&M - Departmental planned (external)","130196520","29/11/2017","Facilities Management","Caretakers Community Centre","R2001"
"Wolverhampton City Council","http://opendatacommunities.org/id/metropolitan-district-council/wolverhampton","704593","J Edwards Glass","0000101622","45.00","R&M - Departmental planned (external)","130194476","10/11/2017","Facilities Management","Caretakers Community Centre","R2001"
"Wolverhampton City Council","http://opendatacommunities.org/id/metropolitan-district-council/wolverhampton","704593","J Edwards Glass","0000101662","193.00","R&M - Departmental planned (external)","130194477","10/11/2017","Maintenance Programme","Centralised R&M","R2001"
"Wolverhampton City Council","http://opendatacommunities.org/id/metropolitan-district-council/wolverhampton","704593","J Edwards Glass","0000101712","2,158.00","R&M - Departmental planned (external)","130196519","29/11/2017","Maintenance Programme","Centralised R&M","R2001"
"Wolverhampton City Council","http://opendatacommunities.org/id/metropolitan-district-council/wolverhampton","704605","J Lacey Steeplejacks Contractors Limited","19796","2,985.00","Fixtures and Fittings - Purchases","130194605","15/11/2017","Adult Education","Old Hall Street Main","R2500"
"Wolverhampton City Council","http://opendatacommunities.org/id/metropolitan-district-council/wolverhampton","704605","J Lacey Steeplejacks Contractors Limited","19797","1,390.00","Fixtures and Fittings - Purchases","130194606","15/11/2017","Adult Education","Foyer Building","R2500"
"Wolverhampton City Council","http://opendatacommunities.org/id/metropolitan-district-council/wolverhampton","704605","J Lacey Steeplejacks Contractors Limited","19798","1,995.00","Fixtures and Fittings - Purchases","130194607","15/11/2017","Adult Education","Alan Garner Centre Building","R2500"
"Wolverhampton City Council","http://opendatacommunities.org/id/metropolitan-district-council/wolverhampton","704612","J P Lennard Limited","864262","200.67","Equipment - Purchase","130193563","01/11/2017","Leisure Services","Central Baths","R4000"
"Wolverhampton City Council","http://opendatacommunities.org/id/metropolitan-district-council/wolverhampton","704612","J P Lennard Limited","866178","49.50","Equipment - Purchase","130193564","08/11/2017","Leisure Services","Bert Williams Leisure Centre","R4000"
"Wolverhampton City Council","http://opendatacommunities.org/id/metropolitan-district-council/wolverhampton","704612","J P Lennard Limited","866178","13.65","Equipment - Purchase","130193564","08/11/2017","Leisure Services","Bert Williams Leisure Centre","R4000"
"Wolverhampton City Council","http://opendatacommunities.org/id/metropolitan-district-council/wolverhampton","704612","J P Lennard Limited","861735","80.67","Equipment - Purchase","130192901","01/11/2017","Leisure Services","Central Baths","R4000"
"Wolverhampton City Council","http://opendatacommunities.org/id/metropolitan-district-council/wolverhampton","704612","J P Lennard Limited","861735","13.65","Comms - Postage","130192901","01/11/2017","Leisure Services","Central Baths","R4503"
"Wolverhampton City Council","http://opendatacommunities.org/id/metropolitan-district-council/wolverhampton","704612","J P Lennard Limited","866624","29.00","Equipment - Purchase","130193565","01/11/2017","Leisure Services","Central Baths","R4000"
"Wolverhampton City Council","http://opendatacommunities.org/id/metropolitan-district-council/wolverhampton","704612","J P Lennard Limited","866624","59.00","Equipment - Purchase","130193565","01/11/2017","Leisure Services","Central Baths","R4000"
"Wolverhampton City Council","http://opendatacommunities.org/id/metropolitan-district-council/wolverhampton","704612","J P Lennard Limited","866624","13.65","Comms - Postage","130193565","01/11/2017","Leisure Services","Central Baths","R4503"
"Wolverhampton City Council","http://opendatacommunities.org/id/metropolitan-district-council/wolverhampton","704617","J S Bassi T/A Penn Radio Cars","187","577.50","Client Transport","130195702","17/11/2017","School Planning & Resources","Home to College Transport","R3042"
"Wolverhampton City Council","http://opendatacommunities.org/id/metropolitan-district-council/wolverhampton","704617","J S Bassi T/A Penn Radio Cars","184","1,487.50","Client Transport","130195699","17/11/2017","School Planning & Resources","Special - Transport","R3042"
"Wolverhampton City Council","http://opendatacommunities.org/id/metropolitan-district-council/wolverhampton","704617","J S Bassi T/A Penn Radio Cars","185","152.92","Client Transport","130195700","17/11/2017","School Planning & Resources","Special - Transport","R3042"
"Wolverhampton City Council","http://opendatacommunities.org/id/metropolitan-district-council/wolverhampton","704617","J S Bassi T/A Penn Radio Cars","186","850.00","Client Transport","130195701","17/11/2017","School Planning & Resources","Special - Transport","R3042"
"Wolverhampton City Council","http://opendatacommunities.org/id/metropolitan-district-council/wolverhampton","704618","J S Consultants UK Limited","JST 1352","1,650.00","Training Expenses","130196521","24/11/2017","Human Resources","Workforce Development","R1650"
"Wolverhampton City Council","http://opendatacommunities.org/id/metropolitan-district-council/wolverhampton","704633","J.R. Wooddisse & Co. Limited","1493","54.00","Equipment - R & M","130194809","15/11/2017","Older People Provider Services","Bradley Lodge Resource Centre","R4003"
"Wolverhampton City Council","http://opendatacommunities.org/id/metropolitan-district-council/wolverhampton","704640","Jackdaw (Tools) Limited","JV387334","14.54","Equipment - Purchase","190395885","22/11/2017","Fleet Services","Fleet Management","R4000"
"Wolverhampton City Council","http://opendatacommunities.org/id/metropolitan-district-council/wolverhampton","704640","Jackdaw (Tools) Limited","JV388711","8.69","Equipment - Purchase","190395886","22/11/2017","Fleet Services","Fleet Management","R4000"
"Wolverhampton City Council","http://opendatacommunities.org/id/metropolitan-district-council/wolverhampton","704640","Jackdaw (Tools) Limited","JV388711","8.73","Equipment - Purchase","190395886","22/11/2017","Fleet Services","Fleet Management","R4000"
"Wolverhampton City Council","http://opendatacommunities.org/id/metropolitan-district-council/wolverhampton","704640","Jackdaw (Tools) Limited","JV389483","14.82","Equipment - Purchase","190397185","24/11/2017","Fleet Services","Fleet Management","R4000"
"Wolverhampton City Council","http://opendatacommunities.org/id/metropolitan-district-council/wolverhampton","704640","Jackdaw (Tools) Limited","JV386467","28.01","Equipment - Purchase","190388962","01/11/2017","Fleet Services","Fleet Management","R4000"
"Wolverhampton City Council","http://opendatacommunities.org/id/metropolitan-district-council/wolverhampton","704640","Jackdaw (Tools) Limited","JV386467","11.50","Equipment - Purchase","190388962","01/11/2017","Fleet Services","Fleet Management","R4000"
"Wolverhampton City Council","http://opendatacommunities.org/id/metropolitan-district-council/wolverhampton","704649","Jacobs U.K.Limited","B1018000-214-040","812.91","Construction and Conversion","130194032","22/11/2017","-","Primary Expansion Programme","C1100"
"Wolverhampton City Council","http://opendatacommunities.org/id/metropolitan-district-council/wolverhampton","704649","Jacobs U.K.Limited","B1018000-214-018","500.10","Services - Professional Fees","130194193","22/11/2017","School Planning & Resources","Primary Expansion Feasibility Work","R4400"
"Wolverhampton City Council","http://opendatacommunities.org/id/metropolitan-district-council/wolverhampton","704649","Jacobs U.K.Limited","B1018000-214-014","500.10","Services - Professional Fees","130194192","22/11/2017","School Planning & Resources","Building Schools for the Future (BSF)","R4400"
"Wolverhampton City Council","http://opendatacommunities.org/id/metropolitan-district-council/wolverhampton","704649","Jacobs U.K.Limited","B1018000-214-046","709.65","Construction and Conversion","130194038","22/11/2017","-","Primary Expansion Programme","C1100"
"Wolverhampton City Council","http://opendatacommunities.org/id/metropolitan-district-council/wolverhampton","704649","Jacobs U.K.Limited","B1018000-214-039","1,373.76","Construction and Conversion","130194031","22/11/2017","-","Primary Expansion Programme","C1100"
"Wolverhampton City Council","http://opendatacommunities.org/id/metropolitan-district-council/wolverhampton","704649","Jacobs U.K.Limited","B1018000-214-008","244.64","Construction and Conversion","130194003","22/11/2017","-","Co-Location Programme","C1100"
"Wolverhampton City Council","http://opendatacommunities.org/id/metropolitan-district-council/wolverhampton","704649","Jacobs U.K.Limited","B1018000-214-035","6,249.43","Construction and Conversion","130194027","22/11/2017","-","Decent Homes - Stock Improvements","C1100"
"Wolverhampton City Council","http://opendatacommunities.org/id/metropolitan-district-council/wolverhampton","704649","Jacobs U.K.Limited","B1018000-214-041","1,663.32","Construction and Conversion","130194033","22/11/2017","-","Primary Expansion Programme","C1100"
"Wolverhampton City Council","http://opendatacommunities.org/id/metropolitan-district-council/wolverhampton","704649","Jacobs U.K.Limited","B1018000-214-054","2,635.00","Construction and Conversion","130194046","22/11/2017","-","Boiler / Pipework Replacements","C1100"
"Wolverhampton City Council","http://opendatacommunities.org/id/metropolitan-district-council/wolverhampton","704649","Jacobs U.K.Limited","B1018000-214-047","1,605.37","Construction and Conversion","130194039","22/11/2017","-","Primary Expansion Programme","C1100"
"Wolverhampton City Council","http://opendatacommunities.org/id/metropolitan-district-council/wolverhampton","704649","Jacobs U.K.Limited","B1018000-214-016","193.80","Construction and Conversion","130194010","22/11/2017","-","GF - Disposals Programme (Non-Strategic)","C1100"
"Wolverhampton City Council","http://opendatacommunities.org/id/metropolitan-district-council/wolverhampton","704649","Jacobs U.K.Limited","B1018000-214-053","268.80","Services - Professional Fees","130194045","22/11/2017","School Planning & Resources","Other Support Services","R4400"
"Wolverhampton City Council","http://opendatacommunities.org/id/metropolitan-district-council/wolverhampton","704649","Jacobs U.K.Limited","B1018000-214-025","1,653.36","Services - Professional Fees","130194017","22/11/2017","Estates and Valuations","Estates and Valuations Team","R4400"
"Wolverhampton City Council","http://opendatacommunities.org/id/metropolitan-district-council/wolverhampton","704649","Jacobs U.K.Limited","B1018000-214-032","9,495.70","Services - Professional Fees","130194024","22/11/2017","Corporate Asset Management","Statutory Surveys","R4400"
"Wolverhampton City Council","http://opendatacommunities.org/id/metropolitan-district-council/wolverhampton","704649","Jacobs U.K.Limited","B1018000-214-002","2,050.13","Services - Professional Fees","130193997","22/11/2017","School Planning & Resources","Pupil & Student Support","R4400"
"Wolverhampton City Council","http://opendatacommunities.org/id/metropolitan-district-council/wolverhampton","704649","Jacobs U.K.Limited","B1018000-214-007","375.78","Construction and Conversion","130194002","22/11/2017","-","Co-Location Programme","C1100"
"Wolverhampton City Council","http://opendatacommunities.org/id/metropolitan-district-council/wolverhampton","704649","Jacobs U.K.Limited","B1018000-214-019","500.10","Services - Professional Fees","130194012","22/11/2017","School Planning & Resources","Primary Expansion Feasibility Work","R4400"
"Wolverhampton City Council","http://opendatacommunities.org/id/metropolitan-district-council/wolverhampton","704649","Jacobs U.K.Limited","B1018000-214-043","13,352.58","Construction and Conversion","130194035","22/11/2017","-","Decent Homes - Stock Improvements","C1100"
"Wolverhampton City Council","http://opendatacommunities.org/id/metropolitan-district-council/wolverhampton","704649","Jacobs U.K.Limited","B1018000-214-044","2,436.16","Construction and Conversion","130194036","22/11/2017","-","Decent Homes - Stock Improvements","C1100"
"Wolverhampton City Council","http://opendatacommunities.org/id/metropolitan-district-council/wolverhampton","704649","Jacobs U.K.Limited","B1018000-214-009","39,507.92","Construction and Conversion","130194004","22/11/2017","-","Black Country Growth Deal � Cultural Programme","C1100"
"Wolverhampton City Council","http://opendatacommunities.org/id/metropolitan-district-council/wolverhampton","704649","Jacobs U.K.Limited","B1018000-214-013","2,353.50","Services - Professional Fees","130194008","22/11/2017","School Planning & Resources","Primary Expansion Feasibility Work","R4400"
"Wolverhampton City Council","http://opendatacommunities.org/id/metropolitan-district-council/wolverhampton","704649","Jacobs U.K.Limited","B1018000-214-006","1,128.39","Construction and Conversion","130194001","22/11/2017","-","Primary Expansion Programme","C1100"
"Wolverhampton City Council","http://opendatacommunities.org/id/metropolitan-district-council/wolverhampton","704649","Jacobs U.K.Limited","B1018000-214-001","2,320.00","Services - Professional Fees","130193996","22/11/2017","Estates and Valuations","Estates and Valuations Team","R4400"
"Wolverhampton City Council","http://opendatacommunities.org/id/metropolitan-district-council/wolverhampton","704649","Jacobs U.K.Limited","B1018000-214-037","5,701.14","Construction and Conversion","130194029","22/11/2017","-","Decent Homes - Stock Improvements","C1100"
"Wolverhampton City Council","http://opendatacommunities.org/id/metropolitan-district-council/wolverhampton","704649","Jacobs U.K.Limited","B1018000-214-012","984.26","Services - Professional Fees","130194007","22/11/2017","Capital Programme","Capital Programme Team work for external clients","R4400"
"Wolverhampton City Council","http://opendatacommunities.org/id/metropolitan-district-council/wolverhampton","704649","Jacobs U.K.Limited","B1018000-214-004","727.54","Services - Professional Fees","130193999","22/11/2017","Child Protection","CIN/CP Social Work Unit - Area 6","R4400"
"Wolverhampton City Council","http://opendatacommunities.org/id/metropolitan-district-council/wolverhampton","704649","Jacobs U.K.Limited","B1018000-214-045","1,400.28","Services - Professional Fees","130194037","22/11/2017","City Development","Westside","R4400"
"Wolverhampton City Council","http://opendatacommunities.org/id/metropolitan-district-council/wolverhampton","704649","Jacobs U.K.Limited","B1018000-214-049","4,980.69","Services - Professional Fees","130194041","22/11/2017","Maintenance Programme","Centralised R&M","R4400"
"Wolverhampton City Council","http://opendatacommunities.org/id/metropolitan-district-council/wolverhampton","704649","Jacobs U.K.Limited","B1018000-214-010","77,227.22","Construction and Conversion","130194005","22/11/2017","-","Black Country Growth Deal � Cultural Programme","C1100"
"Wolverhampton City Council","http://opendatacommunities.org/id/metropolitan-district-council/wolverhampton","704649","Jacobs U.K.Limited","B1018000-214-005","749.03","Construction and Conversion","130194000","22/11/2017","-","Primary Expansion Programme","C1100"
"Wolverhampton City Council","http://opendatacommunities.org/id/metropolitan-district-council/wolverhampton","704649","Jacobs U.K.Limited","B1018000-214-038","4,618.95","Construction and Conversion","130194030","22/11/2017","-","Decent Homes - Stock Improvements","C1100"
"Wolverhampton City Council","http://opendatacommunities.org/id/metropolitan-district-council/wolverhampton","704649","Jacobs U.K.Limited","B1018000-214-031","600.10","Services - Professional Fees","130194023","22/11/2017","Audit Services","Health & Safety","R4400"
"Wolverhampton City Council","http://opendatacommunities.org/id/metropolitan-district-council/wolverhampton","704649","Jacobs U.K.Limited","B1018000-214-036","24,090.93","Construction and Conversion","130194028","22/11/2017","-","Decent Homes - Stock Improvements","C1100"
"Wolverhampton City Council","http://opendatacommunities.org/id/metropolitan-district-council/wolverhampton","704649","Jacobs U.K.Limited","B1018000-214-026","2,755.60","Services - Professional Fees","130194018","22/11/2017","Estates and Valuations","Estates and Valuations Team","R4400"
"Wolverhampton City Council","http://opendatacommunities.org/id/metropolitan-district-council/wolverhampton","704649","Jacobs U.K.Limited","B1018000-214-023","2,825.10","Services - Professional Fees","130194015","22/11/2017","Estates and Valuations","Estates and Valuations Team","R4400"
"Wolverhampton City Council","http://opendatacommunities.org/id/metropolitan-district-council/wolverhampton","704649","Jacobs U.K.Limited","B1018000-214-030","2,718.10","Services - Professional Fees","130194022","22/11/2017","Corporate Asset Management","Statutory Surveys","R4400"
"Wolverhampton City Council","http://opendatacommunities.org/id/metropolitan-district-council/wolverhampton","704649","Jacobs U.K.Limited","B1018000-214-017","400.08","Services - Professional Fees","130194011","22/11/2017","School Planning & Resources","Primary Expansion Feasibility Work","R4400"
"Wolverhampton City Council","http://opendatacommunities.org/id/metropolitan-district-council/wolverhampton","704649","Jacobs U.K.Limited","B1018000-214-024","1,067.80","Services - Professional Fees","130194016","22/11/2017","Estates and Valuations","Estates and Valuations Team","R4400"
"Wolverhampton City Council","http://opendatacommunities.org/id/metropolitan-district-council/wolverhampton","704649","Jacobs U.K.Limited","B1018000-214-033","211.80","Services - Professional Fees","130194025","22/11/2017","Corporate Asset Management","Statutory Surveys","R4400"
"Wolverhampton City Council","http://opendatacommunities.org/id/metropolitan-district-council/wolverhampton","704649","Jacobs U.K.Limited","B1018000-214-042","1,059.20","Construction and Conversion","130194034","22/11/2017","-","Structural works","C1100"
"Wolverhampton City Council","http://opendatacommunities.org/id/metropolitan-district-council/wolverhampton","704649","Jacobs U.K.Limited","B1018000-214-020","3,300.66","Construction and Conversion","130194013","22/11/2017","-","Primary Expansion Programme","C1100"
"Wolverhampton City Council","http://opendatacommunities.org/id/metropolitan-district-council/wolverhampton","704649","Jacobs U.K.Limited","B1018000-214-021","3,400.68","Services - Professional Fees","130194014","22/11/2017","Capital Programme","Capital Programme Team","R4400"
"Wolverhampton City Council","http://opendatacommunities.org/id/metropolitan-district-council/wolverhampton","704649","Jacobs U.K.Limited","B1018000-214-052","784.00","Construction and Conversion","130194044","22/11/2017","-","Boiler / Pipework Replacements","C1100"
"Wolverhampton City Council","http://opendatacommunities.org/id/metropolitan-district-council/wolverhampton","704649","Jacobs U.K.Limited","B1018000-214-034","1,164.90","Construction and Conversion","130194026","22/11/2017","-","Black Country Growth Deal � Cultural Programme","C1100"
"Wolverhampton City Council","http://opendatacommunities.org/id/metropolitan-district-council/wolverhampton","704649","Jacobs U.K.Limited","B1018000-214-050","2,325.00","Construction and Conversion","130194042","22/11/2017","-","Boiler / Pipework Replacements","C1100"
"Wolverhampton City Council","http://opendatacommunities.org/id/metropolitan-district-council/wolverhampton","704649","Jacobs U.K.Limited","B1018000-214-029","741.30","Services - Professional Fees","130194021","22/11/2017","Corporate Asset Management","Statutory Surveys","R4400"
"Wolverhampton City Council","http://opendatacommunities.org/id/metropolitan-district-council/wolverhampton","704649","Jacobs U.K.Limited","B1018000-214-011","3,418.38","Construction and Conversion","130194006","22/11/2017","-","Black Country Growth Deal � Cultural Programme","C1100"
"Wolverhampton City Council","http://opendatacommunities.org/id/metropolitan-district-council/wolverhampton","704649","Jacobs U.K.Limited","B1018000-214-027","7,511.84","Services - Professional Fees","130194019","22/11/2017","Maintenance Programme","Centralised R&M","R4400"
"Wolverhampton City Council","http://opendatacommunities.org/id/metropolitan-district-council/wolverhampton","704649","Jacobs U.K.Limited","B1018000-214-051","336.00","Services - Professional Fees","130194043","22/11/2017","School Planning & Resources","Other Support Services","R4400"
"Wolverhampton City Council","http://opendatacommunities.org/id/metropolitan-district-council/wolverhampton","704649","Jacobs U.K.Limited","B1018000-214-028","855.00","Construction and Conversion","130194020","22/11/2017","-","Heath Town","C1100"
"Wolverhampton City Council","http://opendatacommunities.org/id/metropolitan-district-council/wolverhampton","704657","James Lister & Sons Limited","0100/02739665","318.21","Protective Clothing","130189204","17/11/2017","Independent Living Service","Independent Living Service","R4200"
"Wolverhampton City Council","http://opendatacommunities.org/id/metropolitan-district-council/wolverhampton","704657","James Lister & Sons Limited","0100/02752797","73.26","Protective Clothing","130194051","08/11/2017","Highways Maintenance","Patching","R4200"
"Wolverhampton City Council","http://opendatacommunities.org/id/metropolitan-district-council/wolverhampton","704657","James Lister & Sons Limited","0100/02756958","245.30","Clothing / Uniforms","130196078","22/11/2017","Customer Services","City Direct","R4201"
"Wolverhampton City Council","http://opendatacommunities.org/id/metropolitan-district-council/wolverhampton","704657","James Lister & Sons Limited","0100/02739684","58.52","Protective Clothing","130189223","03/11/2017","Democratic Services","Register Office","R4200"
"Wolverhampton City Council","http://opendatacommunities.org/id/metropolitan-district-council/wolverhampton","704657","James Lister & Sons Limited","0100/02755234","30.70","Protective Clothing","130195150","15/11/2017","Planning","Building Consultancy","R4200"
"Wolverhampton City Council","http://opendatacommunities.org/id/metropolitan-district-council/wolverhampton","704657","James Lister & Sons Limited","0100/02732245","32.65","Protective Clothing","130186032","15/11/2017","Fleet Services","Fleet Management","R4200"
"Wolverhampton City Council","http://opendatacommunities.org/id/metropolitan-district-council/wolverhampton","704657","James Lister & Sons Limited","0100/02732245","58.52","Protective Clothing","130186032","15/11/2017","Fleet Services","Fleet Management","R4200"
"Wolverhampton City Council","http://opendatacommunities.org/id/metropolitan-district-council/wolverhampton","704657","James Lister & Sons Limited","0100/02755229","17.50","Protective Clothing","130195145","15/11/2017","Planning","Building Consultancy","R4200"
"Wolverhampton City Council","http://opendatacommunities.org/id/metropolitan-district-council/wolverhampton","704657","James Lister & Sons Limited","240/02752053","850.00","Equipment - Purchase","190393957","17/11/2017","Fleet Services","Fleet Management","R4000"
"Wolverhampton City Council","http://opendatacommunities.org/id/metropolitan-district-council/wolverhampton","704657","James Lister & Sons Limited","240/02753455","219.52","Equipment - Purchase","190393958","17/11/2017","Fleet Services","Fleet Management","R4000"
"Wolverhampton City Council","http://opendatacommunities.org/id/metropolitan-district-council/wolverhampton","704657","James Lister & Sons Limited","0100/02755235","628.87","Protective Clothing","130195151","17/11/2017","Environmental Maintenance","Ground Maintenance West","R4200"
"Wolverhampton City Council","http://opendatacommunities.org/id/metropolitan-district-council/wolverhampton","704657","James Lister & Sons Limited","0100/02755237","84.00","Protective Clothing","130195153","17/11/2017","Environmental Maintenance","Ground Maintenance East","R4200"
"Wolverhampton City Council","http://opendatacommunities.org/id/metropolitan-district-council/wolverhampton","704657","James Lister & Sons Limited","240-02733479","44.60","Equipment - Purchase","190391082","08/11/2017","Fleet Services","Fleet Management","R4000"
"Wolverhampton City Council","http://opendatacommunities.org/id/metropolitan-district-council/wolverhampton","704657","James Lister & Sons Limited","240-02750089","138.64","Equipment - Purchase","190388919","01/11/2017","Fleet Services","Fleet Management","R4000"
"Wolverhampton City Council","http://opendatacommunities.org/id/metropolitan-district-council/wolverhampton","704657","James Lister & Sons Limited","240-02750088","49.80","Equipment - Purchase","190388918","01/11/2017","Fleet Services","Fleet Management","R4000"
"Wolverhampton City Council","http://opendatacommunities.org/id/metropolitan-district-council/wolverhampton","704657","James Lister & Sons Limited","240-02750086","67.20","Equipment - Purchase","190388916","01/11/2017","Fleet Services","Fleet Management","R4000"
"Wolverhampton City Council","http://opendatacommunities.org/id/metropolitan-district-council/wolverhampton","704657","James Lister & Sons Limited","240-02750087","153.12","Equipment - Purchase","190388917","01/11/2017","Fleet Services","Fleet Management","R4000"
"Wolverhampton City Council","http://opendatacommunities.org/id/metropolitan-district-council/wolverhampton","704657","James Lister & Sons Limited","0100 02696603","49.20","Protective Clothing","130169150","01/11/2017","Catering","Education Catering - General Overheads","R4200"
"Wolverhampton City Council","http://opendatacommunities.org/id/metropolitan-district-council/wolverhampton","704657","James Lister & Sons Limited","240-02747293","86.70","Equipment - Purchase","190388915","01/11/2017","Fleet Services","Fleet Management","R4000"
"Wolverhampton City Council","http://opendatacommunities.org/id/metropolitan-district-council/wolverhampton","704657","James Lister & Sons Limited","0100/02755230","18.91","Protective Clothing","130195146","29/11/2017","Cleaning","Cleaning of Buildings - General","R4200"
"Wolverhampton City Council","http://opendatacommunities.org/id/metropolitan-district-council/wolverhampton","704657","James Lister & Sons Limited","0100/02755231","128.55","Protective Clothing","130195147","29/11/2017","Fleet Services","Passenger Transport - General","R4200"
"Wolverhampton City Council","http://opendatacommunities.org/id/metropolitan-district-council/wolverhampton","704657","James Lister & Sons Limited","0100/02759536","152.00","Protective Clothing","130196744","29/11/2017","Fleet Services","Passenger Transport - General","R4200"
"Wolverhampton City Council","http://opendatacommunities.org/id/metropolitan-district-council/wolverhampton","704657","James Lister & Sons Limited","0100/02759540","392.40","Protective Clothing","130196747","29/11/2017","Environmental Maintenance","Parks - Ranger Service","R4200"
"Wolverhampton City Council","http://opendatacommunities.org/id/metropolitan-district-council/wolverhampton","704657","James Lister & Sons Limited","0100/02759534","40.50","Protective Clothing","130196742","29/11/2017","Fleet Services","Passenger Transport - General","R4200"
"Wolverhampton City Council","http://opendatacommunities.org/id/metropolitan-district-council/wolverhampton","704657","James Lister & Sons Limited","0100/02759538","390.18","Protective Clothing","130196746","29/11/2017","Environmental Maintenance","Parks - Ranger Service","R4200"
"Wolverhampton City Council","http://opendatacommunities.org/id/metropolitan-district-council/wolverhampton","704657","James Lister & Sons Limited","0100 02693424","317.36","Protective Clothing","130167597","08/11/2017","Catering","Education Catering - General Overheads","R4200"
"Wolverhampton City Council","http://opendatacommunities.org/id/metropolitan-district-council/wolverhampton","704657","James Lister & Sons Limited","0100/02756952","462.00","Protective Clothing","130196072","22/11/2017","Older People Provider Services","Bradley Lodge Resource Centre","R4200"
"Wolverhampton City Council","http://opendatacommunities.org/id/metropolitan-district-council/wolverhampton","704657","James Lister & Sons Limited","0100/02756956","26.22","Protective Clothing","130196076","22/11/2017","Planning","Building Consultancy","R4200"
"Wolverhampton City Council","http://opendatacommunities.org/id/metropolitan-district-council/wolverhampton","704657","James Lister & Sons Limited","0100/02750832","8.70","Protective Clothing","130193458","22/11/2017","Environmental Maintenance","Parks - Ranger Service","R4200"
"Wolverhampton City Council","http://opendatacommunities.org/id/metropolitan-district-council/wolverhampton","704657","James Lister & Sons Limited","0100/02750832","3.30","Protective Clothing","130193458","22/11/2017","Environmental Maintenance","Parks - Ranger Service","R4200"
"Wolverhampton City Council","http://opendatacommunities.org/id/metropolitan-district-council/wolverhampton","704657","James Lister & Sons Limited","0100/02750832","9.90","Protective Clothing","130193458","22/11/2017","Environmental Maintenance","Parks - Ranger Service","R4200"
"Wolverhampton City Council","http://opendatacommunities.org/id/metropolitan-district-council/wolverhampton","704657","James Lister & Sons Limited","0100/02750832","6.60","Protective Clothing","130193458","22/11/2017","Environmental Maintenance","Parks - Ranger Service","R4200"
"Wolverhampton City Council","http://opendatacommunities.org/id/metropolitan-district-council/wolverhampton","704657","James Lister & Sons Limited","0100/02750832","3.85","Protective Clothing","130193458","22/11/2017","Environmental Maintenance","Parks - Ranger Service","R4200"
"Wolverhampton City Council","http://opendatacommunities.org/id/metropolitan-district-council/wolverhampton","704657","James Lister & Sons Limited","0100/02743090","-30.90","Protective Clothing","130190271","15/11/2017","Fleet Services","Fleet Management","R4200"
"Wolverhampton City Council","http://opendatacommunities.org/id/metropolitan-district-council/wolverhampton","704657","James Lister & Sons Limited","0100/02743107","30.90","Protective Clothing","130190288","15/11/2017","Fleet Services","Fleet Management","R4200"
"Wolverhampton City Council","http://opendatacommunities.org/id/metropolitan-district-council/wolverhampton","704657","James Lister & Sons Limited","0100/02743107","58.52","Protective Clothing","130190288","15/11/2017","Fleet Services","Fleet Management","R4200"
"Wolverhampton City Council","http://opendatacommunities.org/id/metropolitan-district-council/wolverhampton","704657","James Lister & Sons Limited","0100/02743088","-91.17","Protective Clothing","130190269","15/11/2017","Fleet Services","Fleet Management","R4200"
"Wolverhampton City Council","http://opendatacommunities.org/id/metropolitan-district-council/wolverhampton","704657","James Lister & Sons Limited","0100/02739678","10.95","Protective Clothing","130189217","15/11/2017","Fleet Services","Fleet Management","R4200"
"Wolverhampton City Council","http://opendatacommunities.org/id/metropolitan-district-council/wolverhampton","704657","James Lister & Sons Limited","0100/02739678","15.07","Protective Clothing","130189217","15/11/2017","Fleet Services","Fleet Management","R4200"
"Wolverhampton City Council","http://opendatacommunities.org/id/metropolitan-district-council/wolverhampton","704657","James Lister & Sons Limited","0100/02739678","21.65","Protective Clothing","130189217","15/11/2017","Fleet Services","Fleet Management","R4200"
"Wolverhampton City Council","http://opendatacommunities.org/id/metropolitan-district-council/wolverhampton","704657","James Lister & Sons Limited","0100/02739678","30.90","Protective Clothing","130189217","15/11/2017","Fleet Services","Fleet Management","R4200"
"Wolverhampton City Council","http://opendatacommunities.org/id/metropolitan-district-council/wolverhampton","704657","James Lister & Sons Limited","0100/02752796","74.04","Protective Clothing","130194050","15/11/2017","Fleet Services","Fleet Management","R4200"
"Wolverhampton City Council","http://opendatacommunities.org/id/metropolitan-district-council/wolverhampton","704657","James Lister & Sons Limited","0100/02755236","69.87","Protective Clothing","130195152","15/11/2017","Facilities Management","Civic Centre","R4200"
"Wolverhampton City Council","http://opendatacommunities.org/id/metropolitan-district-council/wolverhampton","704657","James Lister & Sons Limited","0100/02755232","183.01","Protective Clothing","130195148","15/11/2017","Environmental Maintenance","Ground Maintenance West","R4200"
"Wolverhampton City Council","http://opendatacommunities.org/id/metropolitan-district-council/wolverhampton","704657","James Lister & Sons Limited","240/02752051","40.00","Equipment - Purchase","190395095","22/11/2017","Fleet Services","Fleet Management","R4000"
"Wolverhampton City Council","http://opendatacommunities.org/id/metropolitan-district-council/wolverhampton","704657","James Lister & Sons Limited","0100/02755238","669.40","Protective Clothing","130195154","22/11/2017","Environmental Maintenance","Ground Maintenance East","R4200"
"Wolverhampton City Council","http://opendatacommunities.org/id/metropolitan-district-council/wolverhampton","704657","James Lister & Sons Limited","0100/02756955","130.70","Protective Clothing","130196075","22/11/2017","Fleet Services","Passenger Transport - General","R4200"
"Wolverhampton City Council","http://opendatacommunities.org/id/metropolitan-district-council/wolverhampton","704657","James Lister & Sons Limited","0100/02756953","31.50","Protective Clothing","130196073","22/11/2017","Fleet Services","Passenger Transport - General","R4200"
"Wolverhampton City Council","http://opendatacommunities.org/id/metropolitan-district-council/wolverhampton","704657","James Lister & Sons Limited","0100/02756954","30.90","Protective Clothing","130196074","22/11/2017","Fleet Services","Passenger Transport - General","R4200"
"Wolverhampton City Council","http://opendatacommunities.org/id/metropolitan-district-council/wolverhampton","704657","James Lister & Sons Limited","240/02756406","153.12","Equipment - Purchase","190395096","22/11/2017","Fleet Services","Fleet Management","R4000"
"Wolverhampton City Council","http://opendatacommunities.org/id/metropolitan-district-council/wolverhampton","704657","James Lister & Sons Limited","0100/02755233","31.25","Protective Clothing","130195149","22/11/2017","Bereavement Services","Crematorium","R4200"
"Wolverhampton City Council","http://opendatacommunities.org/id/metropolitan-district-council/wolverhampton","704657","James Lister & Sons Limited","0100/02756951","54.23","Protective Clothing","130196071","22/11/2017","Catering","Education Catering - General Overheads","R4200"
"Wolverhampton City Council","http://opendatacommunities.org/id/metropolitan-district-council/wolverhampton","704657","James Lister & Sons Limited","0100/02756959","13.50","Protective Clothing","130196079","22/11/2017","Fleet Services","Passenger Transport - General","R4200"
"Wolverhampton City Council","http://opendatacommunities.org/id/metropolitan-district-council/wolverhampton","704657","James Lister & Sons Limited","240/02752046","45.00","Equipment - Purchase","190393175","15/11/2017","Fleet Services","Fleet Management","R4000"
"Wolverhampton City Council","http://opendatacommunities.org/id/metropolitan-district-council/wolverhampton","704657","James Lister & Sons Limited","240/02752052","143.81","Equipment - Purchase","190393180","15/11/2017","Fleet Services","Fleet Management","R4000"
"Wolverhampton City Council","http://opendatacommunities.org/id/metropolitan-district-council/wolverhampton","704657","James Lister & Sons Limited","240/02752048","222.64","Equipment - Purchase","190393177","15/11/2017","Fleet Services","Fleet Management","R4000"
"Wolverhampton City Council","http://opendatacommunities.org/id/metropolitan-district-council/wolverhampton","704657","James Lister & Sons Limited","240/02752050","201.20","Equipment - Purchase","190393179","15/11/2017","Fleet Services","Fleet Management","R4000"
"Wolverhampton City Council","http://opendatacommunities.org/id/metropolitan-district-council/wolverhampton","704657","James Lister & Sons Limited","240/02752047","81.05","Equipment - Purchase","190393176","15/11/2017","Fleet Services","Fleet Management","R4000"
"Wolverhampton City Council","http://opendatacommunities.org/id/metropolitan-district-council/wolverhampton","704657","James Lister & Sons Limited","240/02752049","65.63","Equipment - Purchase","190393178","15/11/2017","Fleet Services","Fleet Management","R4000"
"Wolverhampton City Council","http://opendatacommunities.org/id/metropolitan-district-council/wolverhampton","704657","James Lister & Sons Limited","0100/02739675","13.25","Protective Clothing","130189214","15/11/2017","Independent Living Service","Independent Living Service","R4200"
"Wolverhampton City Council","http://opendatacommunities.org/id/metropolitan-district-council/wolverhampton","704657","James Lister & Sons Limited","0100: 02700812","160.86","Protective Clothing","130170945","24/11/2017","Catering","Education Catering - General Overheads","R4200"
"Wolverhampton City Council","http://opendatacommunities.org/id/metropolitan-district-council/wolverhampton","704657","James Lister & Sons Limited","0100/02748469","46.65","Protective Clothing","130192566","24/11/2017","ICTS","Strategic ICTS (ICT Service Budget)","R4200"
"Wolverhampton City Council","http://opendatacommunities.org/id/metropolitan-district-council/wolverhampton","704657","James Lister & Sons Limited","0100/02750834","36.65","Protective Clothing","130193460","01/11/2017","Facilities Management","Civic Centre","R4200"
"Wolverhampton City Council","http://opendatacommunities.org/id/metropolitan-district-council/wolverhampton","704657","James Lister & Sons Limited","0100/02750831","152.00","Protective Clothing","130193457","01/11/2017","Fleet Services","Passenger Transport - General","R4200"
"Wolverhampton City Council","http://opendatacommunities.org/id/metropolitan-district-council/wolverhampton","704657","James Lister & Sons Limited","0100/02750829","41.04","Cleaning Supplies and Materials","130193455","01/11/2017","Independent Living Service","Independent Living Service","R2705"
"Wolverhampton City Council","http://opendatacommunities.org/id/metropolitan-district-council/wolverhampton","704657","James Lister & Sons Limited","0100/02756957","349.22","Protective Clothing","130196077","24/11/2017","Environmental Maintenance","Ground Maintenance West","R4200"
"Wolverhampton City Council","http://opendatacommunities.org/id/metropolitan-district-council/wolverhampton","704657","James Lister & Sons Limited","0100/02750828","-21.15","Protective Clothing","130193454","01/11/2017","Planning","Building Consultancy","R4200"
"Wolverhampton City Council","http://opendatacommunities.org/id/metropolitan-district-council/wolverhampton","704657","James Lister & Sons Limited","0100/02750830","99.00","Protective Clothing","130193456","01/11/2017","Catering","Education Catering - General Overheads","R4200"
"Wolverhampton City Council","http://opendatacommunities.org/id/metropolitan-district-council/wolverhampton","704657","James Lister & Sons Limited","0100/02750833","10.50","Protective Clothing","130193459","01/11/2017","Markets","Wholesale Market Facilities Management","R4200"
"Wolverhampton City Council","http://opendatacommunities.org/id/metropolitan-district-council/wolverhampton","704657","James Lister & Sons Limited","0100/02750835","10.50","Protective Clothing","130193461","01/11/2017","Markets","Wholesale Market Facilities Management","R4200"
"Wolverhampton City Council","http://opendatacommunities.org/id/metropolitan-district-council/wolverhampton","704657","James Lister & Sons Limited","0100/02759537","10.45","Protective Clothing","130196745","29/11/2017","City Development","City Development  - Core Team","R4200"
"Wolverhampton City Council","http://opendatacommunities.org/id/metropolitan-district-council/wolverhampton","704657","James Lister & Sons Limited","0100/02759530","14.84","Protective Clothing","130196739","29/11/2017","Markets","Bilston Market and Licensed Operations","R4200"
"Wolverhampton City Council","http://opendatacommunities.org/id/metropolitan-district-council/wolverhampton","704657","James Lister & Sons Limited","0100/02759533","36.09","Protective Clothing","130196741","29/11/2017","Highways Maintenance","Patching","R4200"
"Wolverhampton City Council","http://opendatacommunities.org/id/metropolitan-district-council/wolverhampton","704657","James Lister & Sons Limited","0100/02759535","824.70","Protective Clothing","130196743","29/11/2017","Environmental Maintenance","Ground Maintenance East","R4200"
"Wolverhampton City Council","http://opendatacommunities.org/id/metropolitan-district-council/wolverhampton","704657","James Lister & Sons Limited","0100/02759529","21.60","Protective Clothing","130196738","29/11/2017","Environmental Maintenance","Ground Maintenance West","R4200"
"Wolverhampton City Council","http://opendatacommunities.org/id/metropolitan-district-council/wolverhampton","704657","James Lister & Sons Limited","0100/02755227","117.00","Protective Clothing","130195143","17/11/2017","Fleet Services","Passenger Transport - General","R4200"
"Wolverhampton City Council","http://opendatacommunities.org/id/metropolitan-district-council/wolverhampton","704657","James Lister & Sons Limited","0100/02730334","163.75","Protective Clothing","130185429","08/11/2017","Environmental Maintenance","Parks - Ranger Service","R4200"
"Wolverhampton City Council","http://opendatacommunities.org/id/metropolitan-district-council/wolverhampton","704657","James Lister & Sons Limited","240/02750090","294.44","Equipment - Purchase","190390212","08/11/2017","Fleet Services","Fleet Management","R4000"
"Wolverhampton City Council","http://opendatacommunities.org/id/metropolitan-district-council/wolverhampton","704657","James Lister & Sons Limited","0100/02752788","22.20","Protective Clothing","130194194","08/11/2017","Fleet Services","Passenger Transport - General","R4200"
"Wolverhampton City Council","http://opendatacommunities.org/id/metropolitan-district-council/wolverhampton","704657","James Lister & Sons Limited","0100/02752792","71.80","Protective Clothing","130194047","08/11/2017","Catering","Education Catering - General Overheads","R4200"
"Wolverhampton City Council","http://opendatacommunities.org/id/metropolitan-district-council/wolverhampton","704657","James Lister & Sons Limited","0100/02752789","78.90","Protective Clothing","130194195","08/11/2017","Catering","Education Catering - General Overheads","R4200"
"Wolverhampton City Council","http://opendatacommunities.org/id/metropolitan-district-council/wolverhampton","704657","James Lister & Sons Limited","0100/02752790","192.14","Protective Clothing","130194196","08/11/2017","Central Corporate Budgets","Miscellaneous Corporate Costs","R4200"
"Wolverhampton City Council","http://opendatacommunities.org/id/metropolitan-district-council/wolverhampton","704657","James Lister & Sons Limited","0100/02752791","108.00","Protective Clothing","130194197","08/11/2017","Highways Maintenance","Patching","R4200"
"Wolverhampton City Council","http://opendatacommunities.org/id/metropolitan-district-council/wolverhampton","704657","James Lister & Sons Limited","0100/02752795","143.60","Protective Clothing","130194198","08/11/2017","Catering","Education Catering - General Overheads","R4200"
"Wolverhampton City Council","http://opendatacommunities.org/id/metropolitan-district-council/wolverhampton","704657","James Lister & Sons Limited","0100/02752793","45.28","Protective Clothing","130194048","08/11/2017","Catering","Education Catering - General Overheads","R4200"
"Wolverhampton City Council","http://opendatacommunities.org/id/metropolitan-district-council/wolverhampton","704657","James Lister & Sons Limited","0100/02752794","102.60","Protective Clothing","130194049","08/11/2017","Cleaning","Cleaning of Buildings - General","R4200"
"Wolverhampton City Council","http://opendatacommunities.org/id/metropolitan-district-council/wolverhampton","704657","James Lister & Sons Limited","0100/02759526","-130.70","Protective Clothing","130196735","29/11/2017","Fleet Services","Passenger Transport - General","R4200"
"Wolverhampton City Council","http://opendatacommunities.org/id/metropolitan-district-council/wolverhampton","704657","James Lister & Sons Limited","0100/02748459","18.46","Protective Clothing","130192556","01/11/2017","Environmental Maintenance","Parks - Ranger Service","R4200"
"Wolverhampton City Council","http://opendatacommunities.org/id/metropolitan-district-council/wolverhampton","704657","James Lister & Sons Limited","0100/02748454","21.72","Protective Clothing","130192551","01/11/2017","Environmental Maintenance","Parks - Ranger Service","R4200"
"Wolverhampton City Council","http://opendatacommunities.org/id/metropolitan-district-council/wolverhampton","704657","James Lister & Sons Limited","0100/02748464","21.72","Protective Clothing","130192561","01/11/2017","Environmental Maintenance","Parks - Ranger Service","R4200"
"Wolverhampton City Council","http://opendatacommunities.org/id/metropolitan-district-council/wolverhampton","704675","JCDECAUX UK Limited","SF/I081602","385.00","Marketing \ Non-staff advertising","130194614","22/11/2017","Markets","Wolverhampton Indoor and Open Market","R4317"
"Wolverhampton City Council","http://opendatacommunities.org/id/metropolitan-district-council/wolverhampton","704675","JCDECAUX UK Limited","SF/I080755","525.00","Marketing \ Non-staff advertising","130194613","10/11/2017","Corporate Communications","Communications & Marketing - General","R4317"
"Wolverhampton City Council","http://opendatacommunities.org/id/metropolitan-district-council/wolverhampton","704675","JCDECAUX UK Limited","SF/I080747","385.00","Marketing \ Non-staff advertising","130194612","10/11/2017","Corporate Communications","Communications & Marketing - General","R4317"
"Wolverhampton City Council","http://opendatacommunities.org/id/metropolitan-district-council/wolverhampton","704675","JCDECAUX UK Limited","SF/I079230","407.00","Marketing \ Non-staff advertising","130194609","10/11/2017","Corporate Communications","Communications & Marketing - General","R4317"
"Wolverhampton City Council","http://opendatacommunities.org/id/metropolitan-district-council/wolverhampton","704675","JCDECAUX UK Limited","SF/I079217","385.00","Marketing \ Non-staff advertising","130194608","08/11/2017","Corporate Communications","Communications & Marketing - General","R4317"
"Wolverhampton City Council","http://opendatacommunities.org/id/metropolitan-district-council/wolverhampton","704675","JCDECAUX UK Limited","SF/I080179","385.00","Marketing \ Non-staff advertising","130194611","08/11/2017","Director of Governance","Director of Governance","R4317"
"Wolverhampton City Council","http://opendatacommunities.org/id/metropolitan-district-council/wolverhampton","704675","JCDECAUX UK Limited","SF/I079243","385.00","Marketing \ Non-staff advertising","130194610","08/11/2017","Director of Governance","Director of Governance","R4317"
"Wolverhampton City Council","http://opendatacommunities.org/id/metropolitan-district-council/wolverhampton","704677","Jct Consultancy Limited","M2323","395.00","TPP - Maintenance on Principal Roads","130195329","17/11/2017","Transportation","Strategy & Development","R5700"
"Wolverhampton City Council","http://opendatacommunities.org/id/metropolitan-district-council/wolverhampton","704690","Jenx Limited","208321","74.00","Equipment - R & M","130192266","08/11/2017","Independent Living Service","Independent Living Service","R4003"
"Wolverhampton City Council","http://opendatacommunities.org/id/metropolitan-district-council/wolverhampton","704690","Jenx Limited","208321","20.00","Equipment - R & M","130192266","08/11/2017","Independent Living Service","Independent Living Service","R4003"
"Wolverhampton City Council","http://opendatacommunities.org/id/metropolitan-district-council/wolverhampton","704703","Jim�S Transfleet","311031","1,404.96","Client Transport","130194199","08/11/2017","School Planning & Resources","Special - Transport","R3042"
"Wolverhampton City Council","http://opendatacommunities.org/id/metropolitan-district-council/wolverhampton","704703","Jim�S Transfleet","311031A","1,415.42","Client Transport","130194200","08/11/2017","School Planning & Resources","Special - Transport","R3042"
"Wolverhampton City Council","http://opendatacommunities.org/id/metropolitan-district-council/wolverhampton","704718","Job Change 2007","SO0613","1,260.00","Training Expenses","130192574","10/11/2017","Skills","IMPACT","R1650"
"Wolverhampton City Council","http://opendatacommunities.org/id/metropolitan-district-council/wolverhampton","704718","Job Change 2007","SO0612","39.00","Training Expenses","130192573","10/11/2017","Skills","IMPACT","R1650"
"Wolverhampton City Council","http://opendatacommunities.org/id/metropolitan-district-council/wolverhampton","704718","Job Change 2007","S0607","-1,350.00","Training Expenses","130190296","10/11/2017","Skills","IMPACT","R1650"
"Wolverhampton City Council","http://opendatacommunities.org/id/metropolitan-district-council/wolverhampton","704718","Job Change 2007","SO0614","1,269.00","Training Expenses","130192575","10/11/2017","Skills","IMPACT","R1650"
"Wolverhampton City Council","http://opendatacommunities.org/id/metropolitan-district-council/wolverhampton","704718","Job Change 2007","SO0617","99.50","Training Expenses","130192903","15/11/2017","Skills","IMPACT","R1650"
"Wolverhampton City Council","http://opendatacommunities.org/id/metropolitan-district-council/wolverhampton","704718","Job Change 2007","SO0619","1,334.32","Training Expenses","130194052","24/11/2017","Strategic Organisation Development","Universal Credit","R1650"
"Wolverhampton City Council","http://opendatacommunities.org/id/metropolitan-district-council/wolverhampton","704722","Johal Dairies Limited","988139","10.37","Provisions (Resale)","130192082","03/11/2017","Older People Provider Services","Blakenhall Resource Centre","R4102"
"Wolverhampton City Council","http://opendatacommunities.org/id/metropolitan-district-council/wolverhampton","704722","Johal Dairies Limited","1012402","20.29","Provisions (Resale)","130197208","29/11/2017","Learning Disability Provider","Duke Street Bungalows","R4102"
"Wolverhampton City Council","http://opendatacommunities.org/id/metropolitan-district-council/wolverhampton","704722","Johal Dairies Limited","1012400","91.70","Provisions (Not for resale)","130197207","29/11/2017","Visitor Economy","Bantock - Tea Rooms","R4101"
"Wolverhampton City Council","http://opendatacommunities.org/id/metropolitan-district-council/wolverhampton","704722","Johal Dairies Limited","5935102017","264.76","Provisions (Not for resale)","130194811","22/11/2017","Leisure Services","Bert Williams Leisure Centre Caf�","R4101"
"Wolverhampton City Council","http://opendatacommunities.org/id/metropolitan-district-council/wolverhampton","704722","Johal Dairies Limited","6525102017","83.60","Provisions (Not for resale)","130194812","22/11/2017","Leisure Services","WV Active Catering - Central","R4101"
"Wolverhampton City Council","http://opendatacommunities.org/id/metropolitan-district-council/wolverhampton","704722","Johal Dairies Limited","5466102017","225.92","Provisions (Not for resale)","130194810","22/11/2017","Leisure Services","WV Active Catering","R4101"
"Wolverhampton City Council","http://opendatacommunities.org/id/metropolitan-district-council/wolverhampton","704722","Johal Dairies Limited","988068","147.12","Provisions (Resale)","130192077","24/11/2017","Older People Provider Services","Bradley Lodge Resource Centre","R4102"
"Wolverhampton City Council","http://opendatacommunities.org/id/metropolitan-district-council/wolverhampton","704722","Johal Dairies Limited","996548","46.09","Provisions (Resale)","130192096","10/11/2017","Older People Provider Services","Blakenhall Resource Centre","R4102"
"Wolverhampton City Council","http://opendatacommunities.org/id/metropolitan-district-council/wolverhampton","704722","Johal Dairies Limited","W1/3102017","26,901.78","School Milk","130197057","29/11/2017","Catering","Education Catering - General Overheads","R4104"
"Wolverhampton City Council","http://opendatacommunities.org/id/metropolitan-district-council/wolverhampton","704722","Johal Dairies Limited","WKIT102017","6,836.13","Provisions (Resale)","130196249","22/11/2017","Catering","Education Catering - General Overheads","R4102"
"Wolverhampton City Council","http://opendatacommunities.org/id/metropolitan-district-council/wolverhampton","704722","Johal Dairies Limited","WKIT102017","-6,836.13","Provisions (Resale)","130196249","22/11/2017","Catering","Education Catering - General Overheads","R4102"
"Wolverhampton City Council","http://opendatacommunities.org/id/metropolitan-district-council/wolverhampton","704722","Johal Dairies Limited","WKIT102017","6,811.64","Provisions (Resale)","130196249","22/11/2017","Catering","Education Catering - General Overheads","R4102"
"Wolverhampton City Council","http://opendatacommunities.org/id/metropolitan-district-council/wolverhampton","704722","Johal Dairies Limited","WKIT102017","24.49","Provisions (Resale)","130196249","22/11/2017","Catering","Education Catering - General Overheads","R4102"
"Wolverhampton City Council","http://opendatacommunities.org/id/metropolitan-district-council/wolverhampton","704722","Johal Dairies Limited","983882","128.57","Provisions (Resale)","130192070","15/11/2017","Older People Provider Services","Bradley Lodge Resource Centre","R4102"
"Wolverhampton City Council","http://opendatacommunities.org/id/metropolitan-district-council/wolverhampton","704722","Johal Dairies Limited","991820","129.25","Provisions (Resale)","130192084","15/11/2017","Older People Provider Services","Bradley Lodge Resource Centre","R4102"
"Wolverhampton City Council","http://opendatacommunities.org/id/metropolitan-district-council/wolverhampton","704722","Johal Dairies Limited","W1/3092017","29,659.31","School Milk","130194813","17/11/2017","Catering","Education Catering - General Overheads","R4104"
"Wolverhampton City Council","http://opendatacommunities.org/id/metropolitan-district-council/wolverhampton","704741","John Wilde & Co.(Metals) Limited.","208988","209.50","Materials","130194814","29/11/2017","Bereavement Services","Cemeteries","R4007"
"Wolverhampton City Council","http://opendatacommunities.org/id/metropolitan-district-council/wolverhampton","704745","Johnson Poole & Bloomer Limited","SC24215","12,000.00","Construction and Conversion","130194340","08/11/2017","-","Site Remediation Farndale","C1100"
"Wolverhampton City Council","http://opendatacommunities.org/id/metropolitan-district-council/wolverhampton","704745","Johnson Poole & Bloomer Limited","SC24111","14,400.00","Construction and Conversion","130194053","03/11/2017","-","Site Remediation Farndale","C1100"
"Wolverhampton City Council","http://opendatacommunities.org/id/metropolitan-district-council/wolverhampton","704745","Johnson Poole & Bloomer Limited","63844","825.00","Equipment - Purchase","130196749","29/11/2017","Bereavement Services","Cemeteries","R4000"
"Wolverhampton City Council","http://opendatacommunities.org/id/metropolitan-district-council/wolverhampton","704748","Johnston Sweepers Limited","61559951","268.45","Equipment - Purchase","190393189","15/11/2017","Fleet Services","Fleet Management","R4000"
"Wolverhampton City Council","http://opendatacommunities.org/id/metropolitan-district-council/wolverhampton","704748","Johnston Sweepers Limited","61564878","74.55","Equipment - Purchase","190397172","24/11/2017","Fleet Services","Fleet Management","R4000"
"Wolverhampton City Council","http://opendatacommunities.org/id/metropolitan-district-council/wolverhampton","704748","Johnston Sweepers Limited","61564298","299.79","Equipment - Purchase","190397171","24/11/2017","Fleet Services","Fleet Management","R4000"
"Wolverhampton City Council","http://opendatacommunities.org/id/metropolitan-district-council/wolverhampton","704748","Johnston Sweepers Limited","61564298","2.16","Equipment - Purchase","190397171","24/11/2017","Fleet Services","Fleet Management","R4000"
"Wolverhampton City Council","http://opendatacommunities.org/id/metropolitan-district-council/wolverhampton","704748","Johnston Sweepers Limited","61557395","34.44","Equipment - Purchase","190390220","08/11/2017","Fleet Services","Fleet Management","R4000"
"Wolverhampton City Council","http://opendatacommunities.org/id/metropolitan-district-council/wolverhampton","704748","Johnston Sweepers Limited","61559505","288.42","Equipment - Purchase","190395104","22/11/2017","Fleet Services","Fleet Management","R4000"
"Wolverhampton City Council","http://opendatacommunities.org/id/metropolitan-district-council/wolverhampton","704748","Johnston Sweepers Limited","61559505","3.36","Equipment - Purchase","190395104","22/11/2017","Fleet Services","Fleet Management","R4000"
"Wolverhampton City Council","http://opendatacommunities.org/id/metropolitan-district-council/wolverhampton","704748","Johnston Sweepers Limited","61551433","2.12","Equipment - Purchase","190388923","01/11/2017","Fleet Services","Fleet Management","R4000"
"Wolverhampton City Council","http://opendatacommunities.org/id/metropolitan-district-council/wolverhampton","704748","Johnston Sweepers Limited","61551433","266.62","Equipment - Purchase","190388923","01/11/2017","Fleet Services","Fleet Management","R4000"
"Wolverhampton City Council","http://opendatacommunities.org/id/metropolitan-district-council/wolverhampton","704748","Johnston Sweepers Limited","61551433","27.45","Equipment - Purchase","190388923","01/11/2017","Fleet Services","Fleet Management","R4000"
"Wolverhampton City Council","http://opendatacommunities.org/id/metropolitan-district-council/wolverhampton","704748","Johnston Sweepers Limited","61552253","258.45","Equipment - Purchase","190388924","01/11/2017","Fleet Services","Fleet Management","R4000"
"Wolverhampton City Council","http://opendatacommunities.org/id/metropolitan-district-council/wolverhampton","704748","Johnston Sweepers Limited","61551432","167.26","Equipment - Purchase","190388922","01/11/2017","Fleet Services","Fleet Management","R4000"
"Wolverhampton City Council","http://opendatacommunities.org/id/metropolitan-district-council/wolverhampton","704748","Johnston Sweepers Limited","61551432","21.46","Equipment - Purchase","190388922","01/11/2017","Fleet Services","Fleet Management","R4000"
"Wolverhampton City Council","http://opendatacommunities.org/id/metropolitan-district-council/wolverhampton","704748","Johnston Sweepers Limited","61553731","36.27","Equipment - Purchase","190388925","01/11/2017","Fleet Services","Fleet Management","R4000"
"Wolverhampton City Council","http://opendatacommunities.org/id/metropolitan-district-council/wolverhampton","704748","Johnston Sweepers Limited","61555435","1.16","Equipment - Purchase","190388926","01/11/2017","Fleet Services","Fleet Management","R4000"
"Wolverhampton City Council","http://opendatacommunities.org/id/metropolitan-district-council/wolverhampton","704748","Johnston Sweepers Limited","61555435","111.52","Equipment - Purchase","190388926","01/11/2017","Fleet Services","Fleet Management","R4000"
"Wolverhampton City Council","http://opendatacommunities.org/id/metropolitan-district-council/wolverhampton","704748","Johnston Sweepers Limited","63292442","-266.62","Equipment - Purchase","190388927","01/11/2017","Fleet Services","Fleet Management","R4000"
"Wolverhampton City Council","http://opendatacommunities.org/id/metropolitan-district-council/wolverhampton","704748","Johnston Sweepers Limited","61561153","1.20","Equipment - Purchase","190393961","17/11/2017","Fleet Services","Fleet Management","R4000"
"Wolverhampton City Council","http://opendatacommunities.org/id/metropolitan-district-council/wolverhampton","704748","Johnston Sweepers Limited","61561153","85.47","Equipment - Purchase","190393961","17/11/2017","Fleet Services","Fleet Management","R4000"
"Wolverhampton City Council","http://opendatacommunities.org/id/metropolitan-district-council/wolverhampton","704748","Johnston Sweepers Limited","61561094","314.67","Equipment - Purchase","190393960","17/11/2017","Fleet Services","Fleet Management","R4000"
"Wolverhampton City Council","http://opendatacommunities.org/id/metropolitan-district-council/wolverhampton","704748","Johnston Sweepers Limited","61561094","49.72","Equipment - Purchase","190393960","17/11/2017","Fleet Services","Fleet Management","R4000"
"Wolverhampton City Council","http://opendatacommunities.org/id/metropolitan-district-council/wolverhampton","704748","Johnston Sweepers Limited","61561094","27.04","Equipment - Purchase","190393960","17/11/2017","Fleet Services","Fleet Management","R4000"
"Wolverhampton City Council","http://opendatacommunities.org/id/metropolitan-district-council/wolverhampton","704748","Johnston Sweepers Limited","61561094","110.10","Equipment - Purchase","190393960","17/11/2017","Fleet Services","Fleet Management","R4000"
"Wolverhampton City Council","http://opendatacommunities.org/id/metropolitan-district-council/wolverhampton","704748","Johnston Sweepers Limited","61561094","8.80","Equipment - Purchase","190393960","17/11/2017","Fleet Services","Fleet Management","R4000"
"Wolverhampton City Council","http://opendatacommunities.org/id/metropolitan-district-council/wolverhampton","704752","Jonathan Gidney","623448","962.50","Services - Professional Fees","130195703","22/11/2017","Legal Services","Centralised External Legal Costs","R4400"
"Wolverhampton City Council","http://opendatacommunities.org/id/metropolitan-district-council/wolverhampton","704754","Jones Skips (Wolverhampton) Limited","40135","170.00","TPP - Waste Disposal","130193463","01/11/2017","Early Intervention","EIP Locality 2 � Bilston/Rocket Pool","R5003"
"Wolverhampton City Council","http://opendatacommunities.org/id/metropolitan-district-council/wolverhampton","704754","Jones Skips (Wolverhampton) Limited","40051","170.00","TPP - Waste Disposal","130192736","01/11/2017","Child Protection","CIN/CP Social Work Unit - Area 3","R5003"
"Wolverhampton City Council","http://opendatacommunities.org/id/metropolitan-district-council/wolverhampton","704754","Jones Skips (Wolverhampton) Limited","41146","170.00","TPP - Waste Disposal","130196251","22/11/2017","Early Years","Play General","R5003"
"Wolverhampton City Council","http://opendatacommunities.org/id/metropolitan-district-council/wolverhampton","704754","Jones Skips (Wolverhampton) Limited","41163","180.00","Materials","130196523","29/11/2017","Street Lighting","Street Lighting Maintenance","R4007"
"Wolverhampton City Council","http://opendatacommunities.org/id/metropolitan-district-council/wolverhampton","704754","Jones Skips (Wolverhampton) Limited","41170","170.00","TPP - Waste Disposal","130196524","29/11/2017","Early Intervention","EIP Locality 2 � Bilston/Rocket Pool","R5003"
"Wolverhampton City Council","http://opendatacommunities.org/id/metropolitan-district-council/wolverhampton","704754","Jones Skips (Wolverhampton) Limited","41100","170.00","TPP - Waste Disposal","130196250","22/11/2017","Early Intervention","EIP Locality 1 - Eastfields","R5003"
"Wolverhampton City Council","http://opendatacommunities.org/id/metropolitan-district-council/wolverhampton","704754","Jones Skips (Wolverhampton) Limited","40163","115.00","Section 17","130193464","03/11/2017","Child Protection","CIN/CP Social Work Unit - Area 6","R6403"
"Wolverhampton City Council","http://opendatacommunities.org/id/metropolitan-district-council/wolverhampton","704754","Jones Skips (Wolverhampton) Limited","39311","180.00","Materials","130192103","08/11/2017","Street Lighting","Street Lighting Maintenance","R4007"
"Wolverhampton City Council","http://opendatacommunities.org/id/metropolitan-district-council/wolverhampton","704754","Jones Skips (Wolverhampton) Limited","40997","2,935.50","TPP - Waste Disposal","130197264","29/11/2017","Environmental Maintenance","Ground Maintenance East","R5003"
"Wolverhampton City Council","http://opendatacommunities.org/id/metropolitan-district-council/wolverhampton","704754","Jones Skips (Wolverhampton) Limited","40997","1,186.56","TPP - Waste Disposal","130197264","29/11/2017","Environmental Maintenance","Ground Maintenance West","R5003"
"Wolverhampton City Council","http://opendatacommunities.org/id/metropolitan-district-council/wolverhampton","704754","Jones Skips (Wolverhampton) Limited","41003","170.00","TPP - Waste Disposal","130195157","15/11/2017","Early Intervention","EIP Locality 1 - Eastfields","R5003"
"Wolverhampton City Council","http://opendatacommunities.org/id/metropolitan-district-council/wolverhampton","704756","Jones Transmissions","08117","395.00","Services - Professional Fees","190393951","17/11/2017","Fleet Services","Fleet Management","R4400"
"Wolverhampton City Council","http://opendatacommunities.org/id/metropolitan-district-council/wolverhampton","704756","Jones Transmissions","27107","20.00","Services - Professional Fees","190390215","08/11/2017","Fleet Services","Fleet Management","R4400"
"Wolverhampton City Council","http://opendatacommunities.org/id/metropolitan-district-council/wolverhampton","704756","Jones Transmissions","27107","275.00","Services - Professional Fees","190390215","08/11/2017","Fleet Services","Fleet Management","R4400"
"Wolverhampton City Council","http://opendatacommunities.org/id/metropolitan-district-council/wolverhampton","704756","Jones Transmissions","014117","135.00","Services - Professional Fees","190397159","24/11/2017","Fleet Services","Fleet Management","R4400"
"Wolverhampton City Council","http://opendatacommunities.org/id/metropolitan-district-council/wolverhampton","704756","Jones Transmissions","014117","20.00","Services - Professional Fees","190397159","24/11/2017","Fleet Services","Fleet Management","R4400"
"Wolverhampton City Council","http://opendatacommunities.org/id/metropolitan-district-council/wolverhampton","704756","Jones Transmissions","014117","250.00","Services - Professional Fees","190397159","24/11/2017","Fleet Services","Fleet Management","R4400"
"Wolverhampton City Council","http://opendatacommunities.org/id/metropolitan-district-council/wolverhampton","704756","Jones Transmissions","014117","446.63","Services - Professional Fees","190397159","24/11/2017","Fleet Services","Fleet Management","R4400"
"Wolverhampton City Council","http://opendatacommunities.org/id/metropolitan-district-council/wolverhampton","704756","Jones Transmissions","2117","895.00","Services - Professional Fees","190395092","22/11/2017","Fleet Services","Fleet Management","R4400"
"Wolverhampton City Council","http://opendatacommunities.org/id/metropolitan-district-council/wolverhampton","704756","Jones Transmissions","2117","405.67","Services - Professional Fees","190395092","22/11/2017","Fleet Services","Fleet Management","R4400"
"Wolverhampton City Council","http://opendatacommunities.org/id/metropolitan-district-council/wolverhampton","704756","Jones Transmissions","2117","220.00","Services - Professional Fees","190395092","22/11/2017","Fleet Services","Fleet Management","R4400"
"Wolverhampton City Council","http://opendatacommunities.org/id/metropolitan-district-council/wolverhampton","704757","Jontek Limited","6563","966.00","Equipment - Purchase","130196750","29/11/2017","Independent Living Service","Telecare","R4000"
"Wolverhampton City Council","http://opendatacommunities.org/id/metropolitan-district-council/wolverhampton","704757","Jontek Limited","6569","3,036.50","Equipment - R & M","130196751","29/11/2017","Independent Living Service","Telecare","R4003"
"Wolverhampton City Council","http://opendatacommunities.org/id/metropolitan-district-council/wolverhampton","704785","Just Projector Lamps","INT219033","230.52","Computing - Purchase of Hardware","130193566","22/11/2017","Adult Education","ICT Services","R4530"
"Wolverhampton City Council","http://opendatacommunities.org/id/metropolitan-district-council/wolverhampton","704824","Kate Cairns Associates Limited","2567","1,800.00","Training Expenses","130196525","29/11/2017","Standards and Vulnerable Pupils","LEP-Leadership & Management Programme","R1650"
"Wolverhampton City Council","http://opendatacommunities.org/id/metropolitan-district-council/wolverhampton","704832","Kays Medical Limited","0000235216","9.70","Materials","130192738","08/11/2017","Human Resources","Occupational Health","R4007"
"Wolverhampton City Council","http://opendatacommunities.org/id/metropolitan-district-council/wolverhampton","704832","Kays Medical Limited","0000235216","9.95","Materials","130192738","08/11/2017","Human Resources","Occupational Health","R4007"
"Wolverhampton City Council","http://opendatacommunities.org/id/metropolitan-district-council/wolverhampton","704846","Kellogg�S Asa Award Scheme(Swim England)","SIN201037","456.50","Materials for resale","130192904","15/11/2017","Leisure Services","Bert Williams Leisure Centre","R4008"
"Wolverhampton City Council","http://opendatacommunities.org/id/metropolitan-district-council/wolverhampton","704846","Kellogg�S Asa Award Scheme(Swim England)","SIN200369","585.00","Materials for resale","130190829","01/11/2017","Leisure Services","Bert Williams Leisure Centre","R4008"
"Wolverhampton City Council","http://opendatacommunities.org/id/metropolitan-district-council/wolverhampton","704846","Kellogg�S Asa Award Scheme(Swim England)","SIN200369","13.50","Comms - Postage","130190829","01/11/2017","Leisure Services","Bert Williams Leisure Centre","R4503"
"Wolverhampton City Council","http://opendatacommunities.org/id/metropolitan-district-council/wolverhampton","704846","Kellogg�S Asa Award Scheme(Swim England)","SIN201062","390.00","Materials for resale","130192905","15/11/2017","Leisure Services","Central Baths","R4008"
"Wolverhampton City Council","http://opendatacommunities.org/id/metropolitan-district-council/wolverhampton","704846","Kellogg�S Asa Award Scheme(Swim England)","SIN201062","8.00","Materials for resale","130192905","15/11/2017","Leisure Services","Central Baths","R4008"
"Wolverhampton City Council","http://opendatacommunities.org/id/metropolitan-district-council/wolverhampton","704855","Kenton Research Limited","OP/I023597","796.00","Computing - Internet","130189233","01/11/2017","ICTS","Strategic ICTS (ICT Service Budget)","R4537"
"Wolverhampton City Council","http://opendatacommunities.org/id/metropolitan-district-council/wolverhampton","704855","Kenton Research Limited","OP/I024049","420.00","Computing - Internet","130195158","15/11/2017","ICTS","Strategic ICTS (ICT Service Budget)","R4537"
"Wolverhampton City Council","http://opendatacommunities.org/id/metropolitan-district-council/wolverhampton","704855","Kenton Research Limited","OP/I024051","7,247.50","Computing - Internet","130194944","15/11/2017","ICTS","Strategic ICTS (ICT Service Budget)","R4537"
"Wolverhampton City Council","http://opendatacommunities.org/id/metropolitan-district-council/wolverhampton","704855","Kenton Research Limited","OP/I024055","500.00","Computing - Internet","130194948","15/11/2017","ICTS","Strategic ICTS (ICT Service Budget)","R4537"
"Wolverhampton City Council","http://opendatacommunities.org/id/metropolitan-district-council/wolverhampton","704855","Kenton Research Limited","OP/I024057","420.00","Computing - Internet","130194949","15/11/2017","ICTS","Strategic ICTS (ICT Service Budget)","R4537"
"Wolverhampton City Council","http://opendatacommunities.org/id/metropolitan-district-council/wolverhampton","704855","Kenton Research Limited","OP/I024062","440.00","Computing - Internet","130194951","15/11/2017","ICTS","Strategic ICTS (ICT Service Budget)","R4537"
"Wolverhampton City Council","http://opendatacommunities.org/id/metropolitan-district-council/wolverhampton","704855","Kenton Research Limited","OP/I024059","782.50","Computing - Internet","130194950","15/11/2017","ICTS","Strategic ICTS (ICT Service Budget)","R4537"
"Wolverhampton City Council","http://opendatacommunities.org/id/metropolitan-district-council/wolverhampton","704855","Kenton Research Limited","OP/I024054","481.25","Computing - Internet","130194947","15/11/2017","ICTS","Strategic ICTS (ICT Service Budget)","R4537"
"Wolverhampton City Council","http://opendatacommunities.org/id/metropolitan-district-council/wolverhampton","704855","Kenton Research Limited","OP/I024052","672.50","Computing - Internet","130194945","15/11/2017","ICTS","Strategic ICTS (ICT Service Budget)","R4537"
"Wolverhampton City Council","http://opendatacommunities.org/id/metropolitan-district-council/wolverhampton","704855","Kenton Research Limited","OP/I024050","782.50","Computing - Internet","130195159","15/11/2017","ICTS","Strategic ICTS (ICT Service Budget)","R4537"
"Wolverhampton City Council","http://opendatacommunities.org/id/metropolitan-district-council/wolverhampton","704855","Kenton Research Limited","OP/I024060","782.50","Computing - Internet","130195161","15/11/2017","ICTS","Strategic ICTS (ICT Service Budget)","R4537"
"Wolverhampton City Council","http://opendatacommunities.org/id/metropolitan-district-council/wolverhampton","704855","Kenton Research Limited","OP/I024056","720.00","Computing - Internet","130195160","15/11/2017","ICTS","Strategic ICTS (ICT Service Budget)","R4537"
"Wolverhampton City Council","http://opendatacommunities.org/id/metropolitan-district-council/wolverhampton","704855","Kenton Research Limited","OP/I024053","720.00","Computing - Internet","130194946","15/11/2017","ICTS","Strategic ICTS (ICT Service Budget)","R4537"
"Wolverhampton City Council","http://opendatacommunities.org/id/metropolitan-district-council/wolverhampton","704855","Kenton Research Limited","OP/I024063","1,262.50","Computing - Internet","130194952","15/11/2017","ICTS","Strategic ICTS (ICT Service Budget)","R4537"
"Wolverhampton City Council","http://opendatacommunities.org/id/metropolitan-district-council/wolverhampton","704855","Kenton Research Limited","OP/I024029","796.00","Computing - Internet","130194617","10/11/2017","ICTS","Strategic ICTS (ICT Service Budget)","R4537"
"Wolverhampton City Council","http://opendatacommunities.org/id/metropolitan-district-council/wolverhampton","704855","Kenton Research Limited","OP/I024030","720.00","Computing - Internet","130194618","10/11/2017","ICTS","Strategic ICTS (ICT Service Budget)","R4537"
"Wolverhampton City Council","http://opendatacommunities.org/id/metropolitan-district-council/wolverhampton","704855","Kenton Research Limited","OP/1024031","420.00","Computing - Internet","130194615","10/11/2017","ICTS","Strategic ICTS (ICT Service Budget)","R4537"
"Wolverhampton City Council","http://opendatacommunities.org/id/metropolitan-district-council/wolverhampton","704855","Kenton Research Limited","OP/I024028","720.00","Computing - Internet","130194616","10/11/2017","ICTS","Strategic ICTS (ICT Service Budget)","R4537"
"Wolverhampton City Council","http://opendatacommunities.org/id/metropolitan-district-council/wolverhampton","704871","Keysoft Solutions Limited","ORD - 12342 - B9S4L1","2,445.00","Computing - Purchase of Software","130196397","22/11/2017","Landscape","Landscape","R4531"
"Wolverhampton City Council","http://opendatacommunities.org/id/metropolitan-district-council/wolverhampton","704889","Killgerm Chemicals Limited","SI02 - 01653G0","208.00","Materials","130194619","29/11/2017","Environmental Maintenance","Pest Control","R4007"
"Wolverhampton City Council","http://opendatacommunities.org/id/metropolitan-district-council/wolverhampton","704889","Killgerm Chemicals Limited","SI02 - 01653G0","250.00","Materials","130194619","29/11/2017","Environmental Maintenance","Pest Control","R4007"
"Wolverhampton City Council","http://opendatacommunities.org/id/metropolitan-district-council/wolverhampton","704889","Killgerm Chemicals Limited","SI02 - 01653G0","216.00","Equipment - Purchase","130194619","29/11/2017","Environmental Maintenance","Pest Control","R4000"
"Wolverhampton City Council","http://opendatacommunities.org/id/metropolitan-district-council/wolverhampton","704889","Killgerm Chemicals Limited","SI02 - 01653G0","31.00","Equipment - Purchase","130194619","29/11/2017","Environmental Maintenance","Pest Control","R4000"
"Wolverhampton City Council","http://opendatacommunities.org/id/metropolitan-district-council/wolverhampton","704889","Killgerm Chemicals Limited","SI02 - 01653G0","73.00","Equipment - Purchase","130194619","29/11/2017","Environmental Maintenance","Pest Control","R4000"
"Wolverhampton City Council","http://opendatacommunities.org/id/metropolitan-district-council/wolverhampton","704896","King Charles I Secondary School","P15767620171103","600.00","Grant Payments to Individuals","190390248","08/11/2017","Looked After Children","LAC Education Team (LACE)","R6402"
"Wolverhampton City Council","http://opendatacommunities.org/id/metropolitan-district-council/wolverhampton","704899","King Highway Products Limited","SI-000454","352.50","Services - Professional Fees","190395887","22/11/2017","Fleet Services","Fleet Management","R4400"
"Wolverhampton City Council","http://opendatacommunities.org/id/metropolitan-district-council/wolverhampton","704901","Kingfisher Environmental Servs Limited","1710525","74.03","Services - Professional Fees","130194620","10/11/2017","Leisure Services","Bert Williams Leisure Centre","R4400"
"Wolverhampton City Council","http://opendatacommunities.org/id/metropolitan-district-council/wolverhampton","704901","Kingfisher Environmental Servs Limited","1710542","53.98","R&M - Departmental planned (external)","130194621","10/11/2017","Leisure Services","Central Baths","R2001"
"Wolverhampton City Council","http://opendatacommunities.org/id/metropolitan-district-council/wolverhampton","704909","Kingsmead  School & Technology College","P15767620171103","600.00","Grant Payments to Individuals","190390248","08/11/2017","Looked After Children","LAC Education Team (LACE)","R6402"
"Wolverhampton City Council","http://opendatacommunities.org/id/metropolitan-district-council/wolverhampton","704911","Kingswood Learning & Leisure Grp Limited","KW49195/1","1,100.00","Services - Professional Fees","130196024","17/11/2017","Schools","St Luke�s Church of England Aided Primary School","R4400"
"Wolverhampton City Council","http://opendatacommunities.org/id/metropolitan-district-council/wolverhampton","704927","Komodo Fireworks Limited","Diwali2017","3,000.00","Services - Professional Fees","130192739","10/11/2017","Visitor Economy","Diwali","R4400"
"Wolverhampton City Council","http://opendatacommunities.org/id/metropolitan-district-council/wolverhampton","704931","Konica Minolta Bus.Solutions(UK)Limited.","1133596552","1,243.85","Services - Professional Fees","130196023","17/11/2017","Schools","Eastfield Primary School","R4400"
"Wolverhampton City Council","http://opendatacommunities.org/id/metropolitan-district-council/wolverhampton","704931","Konica Minolta Bus.Solutions(UK)Limited.","1133932119","15.04","Photocopier Operating Lease","130194623","24/11/2017","Adult Education","ICT Services","R4304"
"Wolverhampton City Council","http://opendatacommunities.org/id/metropolitan-district-council/wolverhampton","704931","Konica Minolta Bus.Solutions(UK)Limited.","1133596555","1,067.12","Photocopier Operating Lease","130196482","22/11/2017","Schools","West Park Primary School","R4304"
"Wolverhampton City Council","http://opendatacommunities.org/id/metropolitan-district-council/wolverhampton","704931","Konica Minolta Bus.Solutions(UK)Limited.","1133220002","211.44","Photocopier Operating Lease","130197192","29/11/2017","Schools","Lanesfield Primary School","R4304"
"Wolverhampton City Council","http://opendatacommunities.org/id/metropolitan-district-council/wolverhampton","704934","Kpr Midlink Limited","13226","90.00","Equipment - Purchase","130196752","29/11/2017","Markets","Bilston Market and Licensed Operations","R4000"
"Wolverhampton City Council","http://opendatacommunities.org/id/metropolitan-district-council/wolverhampton","704935","Krcs Group PLC","37230","7,968.00","Computing - Purchase of Software","130193465","15/11/2017","ICTS","Strategic ICTS (ICT Service Budget)","R4531"
"Wolverhampton City Council","http://opendatacommunities.org/id/metropolitan-district-council/wolverhampton","704936","Kroy (Europe) Limited","IV231462","735.00","Signage and Labels","130193074","15/11/2017","Licensing","Licensing - Private Hire Vehicles","R4009"
"Wolverhampton City Council","http://opendatacommunities.org/id/metropolitan-district-council/wolverhampton","704936","Kroy (Europe) Limited","IV231462","11.00","Signage and Labels","130193074","15/11/2017","Licensing","Licensing - Private Hire Vehicles","R4009"
"Wolverhampton City Council","http://opendatacommunities.org/id/metropolitan-district-council/wolverhampton","704945","L And A Lettings Limited","LA-MEHMI-00001","575.00","Rent Rebates","190397816","29/11/2017","Housing Revenue Account","Spend to Save Fund","R6210"
"Wolverhampton City Council","http://opendatacommunities.org/id/metropolitan-district-council/wolverhampton","704965","L.T. & R. Vowles Limited","800269","656.40","Materials","130195331","29/11/2017","Bereavement Services","Cemeteries","R4007"
"Wolverhampton City Council","http://opendatacommunities.org/id/metropolitan-district-council/wolverhampton","704995","Langham:A Div�N Of Gordon Ellis & Co","SI - 1150896","565.50","Equipment - Purchase","130191343","01/11/2017","Independent Living Service","Independent Living Service","R4000"
"Wolverhampton City Council","http://opendatacommunities.org/id/metropolitan-district-council/wolverhampton","705003","Lapwing","205290","690.29","Materials","130197060","29/11/2017","Highways Maintenance","Patching","R4007"
"Wolverhampton City Council","http://opendatacommunities.org/id/metropolitan-district-council/wolverhampton","705040","Learning & Skills (Lsect)","30839","236.00","Staff Advertising Costs","130194341","29/11/2017","Adult Education","Service Wide","R1700"
"Wolverhampton City Council","http://opendatacommunities.org/id/metropolitan-district-council/wolverhampton","705069","Leicestershire County Council","25727315","19,783.30","Construction and Conversion","130192740","15/11/2017","-","Integrated Transport","C1100"
"Wolverhampton City Council","http://opendatacommunities.org/id/metropolitan-district-council/wolverhampton","705070","Leicestershire Education Bus.Company","5772","30.50","Equipment - Purchase","130194624","08/11/2017","Skills","Eduction Business Partnership","R4000"
"Wolverhampton City Council","http://opendatacommunities.org/id/metropolitan-district-council/wolverhampton","705083","Let Us Play (Wolverhampton)","LUP00185","1,580.33","TPP - Social Care Support Services","130195892","29/11/2017","Early Intervention","Transformation Challenge Award","R5501"
"Wolverhampton City Council","http://opendatacommunities.org/id/metropolitan-district-council/wolverhampton","705083","Let Us Play (Wolverhampton)","LUP00186","1,580.33","TPP - Social Care Support Services","130195893","29/11/2017","Early Intervention","Transformation Challenge Award","R5501"
"Wolverhampton City Council","http://opendatacommunities.org/id/metropolitan-district-council/wolverhampton","705089","Lewis�S Medical Supp/Ta Pleskarn Limited","SI058255","7.50","Materials","130193318","01/11/2017","Facilities Management","Civic Centre","R4007"
"Wolverhampton City Council","http://opendatacommunities.org/id/metropolitan-district-council/wolverhampton","705102","Lichfield Diocesan Board Of Educ","17115","900.00","Services - Consultants","130194203","29/11/2017","Standards and Vulnerable Pupils","SACRE","R4404"
"Wolverhampton City Council","http://opendatacommunities.org/id/metropolitan-district-council/wolverhampton","705102","Lichfield Diocesan Board Of Educ","17115","-900.00","Services - Consultants","130194203","29/11/2017","Standards and Vulnerable Pupils","SACRE","R4404"
"Wolverhampton City Council","http://opendatacommunities.org/id/metropolitan-district-council/wolverhampton","705102","Lichfield Diocesan Board Of Educ","17115","900.00","Services - Consultants","130194203","29/11/2017","Standards and Vulnerable Pupils","SACRE","R4404"
"Wolverhampton City Council","http://opendatacommunities.org/id/metropolitan-district-council/wolverhampton","705102","Lichfield Diocesan Board Of Educ","16114","300.00","Services - Consultants","130191900","08/11/2017","Standards and Vulnerable Pupils","SACRE","R4404"
"Wolverhampton City Council","http://opendatacommunities.org/id/metropolitan-district-council/wolverhampton","705108","Life Education Central England","18045 bacs rejec","250.00","Equipment - Purchase","130194534","08/11/2017","Schools","West Park Primary School","R4000"
"Wolverhampton City Council","http://opendatacommunities.org/id/metropolitan-district-council/wolverhampton","705109","Life Safety Distribution A G","5241949705","398.00","R&M - Departmental planned (external)","130194054","24/11/2017","Maintenance Programme","Civic Centre Repairs & Maintenance","R2001"
"Wolverhampton City Council","http://opendatacommunities.org/id/metropolitan-district-council/wolverhampton","705112","Light House Limited","1718-58","136.00","Services - Professional Fees","130192429","08/11/2017","Standards and Vulnerable Pupils","Music Support Team","R4400"
"Wolverhampton City Council","http://opendatacommunities.org/id/metropolitan-district-council/wolverhampton","705112","Light House Limited","1718 59","50.00","Room Hire","130192430","08/11/2017","Strategic Organisation Development","GEN Y City Transnational","R2201"
"Wolverhampton City Council","http://opendatacommunities.org/id/metropolitan-district-council/wolverhampton","705112","Light House Limited","1718 59","96.00","Catering","130192430","08/11/2017","Strategic Organisation Development","GEN Y City Transnational","R4100"
"Wolverhampton City Council","http://opendatacommunities.org/id/metropolitan-district-council/wolverhampton","705123","Linden House (Tettenhall) Limited","5321","120.83","Catering","130196526","29/11/2017","Strategic Director People","Head of Strategic Commissioning � People","R4100"
"Wolverhampton City Council","http://opendatacommunities.org/id/metropolitan-district-council/wolverhampton","705153","Living Springs Family Centre","P158126 12111720171117","10,144.94","TPP - Residential Care - Long Term","190395942","22/11/2017","Child Protection","CIN - Priory Green MAST - Area 6","R5400"
"Wolverhampton City Council","http://opendatacommunities.org/id/metropolitan-district-council/wolverhampton","705177","Locks & Fittings Limited","1053702","34.37","R&M - Departmental planned (external)","130188967","29/11/2017","Maintenance Programme","Centralised R&M","R2001"
"Wolverhampton City Council","http://opendatacommunities.org/id/metropolitan-district-council/wolverhampton","705183","Lodge Tyre Co.Limited","PE004950","25.00","Vehicle Maintenance - Spare Parts","190395154","22/11/2017","Fleet Services","Fleet Management","R3009"
"Wolverhampton City Council","http://opendatacommunities.org/id/metropolitan-district-council/wolverhampton","705183","Lodge Tyre Co.Limited","PE004950","195.00","Vehicle Maintenance - Spare Parts","190395154","22/11/2017","Fleet Services","Fleet Management","R3009"
"Wolverhampton City Council","http://opendatacommunities.org/id/metropolitan-district-council/wolverhampton","705183","Lodge Tyre Co.Limited","PE004950","54.00","Vehicle Maintenance - Spare Parts","190395154","22/11/2017","Fleet Services","Fleet Management","R3009"
"Wolverhampton City Council","http://opendatacommunities.org/id/metropolitan-district-council/wolverhampton","705183","Lodge Tyre Co.Limited","PE004950","65.00","Vehicle Maintenance - Spare Parts","190395154","22/11/2017","Fleet Services","Fleet Management","R3009"
"Wolverhampton City Council","http://opendatacommunities.org/id/metropolitan-district-council/wolverhampton","705183","Lodge Tyre Co.Limited","PE004950","15.00","Vehicle Maintenance - Spare Parts","190395154","22/11/2017","Fleet Services","Fleet Management","R3009"
"Wolverhampton City Council","http://opendatacommunities.org/id/metropolitan-district-council/wolverhampton","705183","Lodge Tyre Co.Limited","PE004950","15.00","Vehicle Maintenance - Spare Parts","190395154","22/11/2017","Fleet Services","Fleet Management","R3009"
"Wolverhampton City Council","http://opendatacommunities.org/id/metropolitan-district-council/wolverhampton","705183","Lodge Tyre Co.Limited","PE004950","54.00","Vehicle Maintenance - Spare Parts","190395154","22/11/2017","Fleet Services","Fleet Management","R3009"
"Wolverhampton City Council","http://opendatacommunities.org/id/metropolitan-district-council/wolverhampton","705183","Lodge Tyre Co.Limited","PE004950","15.00","Vehicle Maintenance - Spare Parts","190395154","22/11/2017","Fleet Services","Fleet Management","R3009"
"Wolverhampton City Council","http://opendatacommunities.org/id/metropolitan-district-council/wolverhampton","705183","Lodge Tyre Co.Limited","PE004950","60.04","Vehicle Maintenance - Spare Parts","190395154","22/11/2017","Fleet Services","Fleet Management","R3009"
"Wolverhampton City Council","http://opendatacommunities.org/id/metropolitan-district-council/wolverhampton","705183","Lodge Tyre Co.Limited","PE004950","132.50","Vehicle Maintenance - Spare Parts","190395154","22/11/2017","Fleet Services","Fleet Management","R3009"
"Wolverhampton City Council","http://opendatacommunities.org/id/metropolitan-district-council/wolverhampton","705183","Lodge Tyre Co.Limited","PE004950","25.00","Vehicle Maintenance - Spare Parts","190395154","22/11/2017","Fleet Services","Fleet Management","R3009"
"Wolverhampton City Council","http://opendatacommunities.org/id/metropolitan-district-council/wolverhampton","705183","Lodge Tyre Co.Limited","PE004950","15.00","Vehicle Maintenance - Spare Parts","190395154","22/11/2017","Fleet Services","Fleet Management","R3009"
"Wolverhampton City Council","http://opendatacommunities.org/id/metropolitan-district-council/wolverhampton","705183","Lodge Tyre Co.Limited","PE004950","132.50","Vehicle Maintenance - Spare Parts","190395154","22/11/2017","Fleet Services","Fleet Management","R3009"
"Wolverhampton City Council","http://opendatacommunities.org/id/metropolitan-district-council/wolverhampton","705183","Lodge Tyre Co.Limited","PE004950","176.45","Vehicle Maintenance - Spare Parts","190395154","22/11/2017","Fleet Services","Fleet Management","R3009"
"Wolverhampton City Council","http://opendatacommunities.org/id/metropolitan-district-council/wolverhampton","705183","Lodge Tyre Co.Limited","PE004950","70.00","Vehicle Maintenance - Spare Parts","190395154","22/11/2017","Fleet Services","Fleet Management","R3009"
"Wolverhampton City Council","http://opendatacommunities.org/id/metropolitan-district-council/wolverhampton","705183","Lodge Tyre Co.Limited","PE004950","54.00","Vehicle Maintenance - Spare Parts","190395154","22/11/2017","Fleet Services","Fleet Management","R3009"
"Wolverhampton City Council","http://opendatacommunities.org/id/metropolitan-district-council/wolverhampton","705183","Lodge Tyre Co.Limited","PE004950","60.00","Vehicle Maintenance - Spare Parts","190395154","22/11/2017","Fleet Services","Fleet Management","R3009"
"Wolverhampton City Council","http://opendatacommunities.org/id/metropolitan-district-council/wolverhampton","705183","Lodge Tyre Co.Limited","PE004950","70.00","Vehicle Maintenance - Spare Parts","190395154","22/11/2017","Fleet Services","Fleet Management","R3009"
"Wolverhampton City Council","http://opendatacommunities.org/id/metropolitan-district-council/wolverhampton","705183","Lodge Tyre Co.Limited","PE004950","70.00","Vehicle Maintenance - Spare Parts","190395154","22/11/2017","Fleet Services","Fleet Management","R3009"
"Wolverhampton City Council","http://opendatacommunities.org/id/metropolitan-district-council/wolverhampton","705183","Lodge Tyre Co.Limited","PE004950","70.00","Vehicle Maintenance - Spare Parts","190395154","22/11/2017","Fleet Services","Fleet Management","R3009"
"Wolverhampton City Council","http://opendatacommunities.org/id/metropolitan-district-council/wolverhampton","705183","Lodge Tyre Co.Limited","PE004950","195.00","Vehicle Maintenance - Spare Parts","190395154","22/11/2017","Fleet Services","Fleet Management","R3009"
"Wolverhampton City Council","http://opendatacommunities.org/id/metropolitan-district-council/wolverhampton","705183","Lodge Tyre Co.Limited","PE004950","195.00","Vehicle Maintenance - Spare Parts","190395154","22/11/2017","Fleet Services","Fleet Management","R3009"
"Wolverhampton City Council","http://opendatacommunities.org/id/metropolitan-district-council/wolverhampton","705183","Lodge Tyre Co.Limited","PE004950","15.00","Vehicle Maintenance - Spare Parts","190395154","22/11/2017","Fleet Services","Fleet Management","R3009"
"Wolverhampton City Council","http://opendatacommunities.org/id/metropolitan-district-council/wolverhampton","705183","Lodge Tyre Co.Limited","PE004950","3.00","Vehicle Maintenance - Spare Parts","190395154","22/11/2017","Fleet Services","Fleet Management","R3009"
"Wolverhampton City Council","http://opendatacommunities.org/id/metropolitan-district-council/wolverhampton","705183","Lodge Tyre Co.Limited","PE004950","25.00","Vehicle Maintenance - Spare Parts","190395154","22/11/2017","Fleet Services","Fleet Management","R3009"
"Wolverhampton City Council","http://opendatacommunities.org/id/metropolitan-district-council/wolverhampton","705183","Lodge Tyre Co.Limited","PE004950","70.00","Vehicle Maintenance - Spare Parts","190395154","22/11/2017","Fleet Services","Fleet Management","R3009"
"Wolverhampton City Council","http://opendatacommunities.org/id/metropolitan-district-council/wolverhampton","705183","Lodge Tyre Co.Limited","PE004950","132.50","Vehicle Maintenance - Spare Parts","190395154","22/11/2017","Fleet Services","Fleet Management","R3009"
"Wolverhampton City Council","http://opendatacommunities.org/id/metropolitan-district-council/wolverhampton","705183","Lodge Tyre Co.Limited","PE004950","132.50","Vehicle Maintenance - Spare Parts","190395154","22/11/2017","Fleet Services","Fleet Management","R3009"
"Wolverhampton City Council","http://opendatacommunities.org/id/metropolitan-district-council/wolverhampton","705183","Lodge Tyre Co.Limited","PE004950","132.50","Vehicle Maintenance - Spare Parts","190395154","22/11/2017","Fleet Services","Fleet Management","R3009"
"Wolverhampton City Council","http://opendatacommunities.org/id/metropolitan-district-council/wolverhampton","705183","Lodge Tyre Co.Limited","PE004950","30.00","Vehicle Maintenance - Spare Parts","190395154","22/11/2017","Fleet Services","Fleet Management","R3009"
"Wolverhampton City Council","http://opendatacommunities.org/id/metropolitan-district-council/wolverhampton","705183","Lodge Tyre Co.Limited","PE004950","25.00","Vehicle Maintenance - Spare Parts","190395154","22/11/2017","Fleet Services","Fleet Management","R3009"
"Wolverhampton City Council","http://opendatacommunities.org/id/metropolitan-district-council/wolverhampton","705183","Lodge Tyre Co.Limited","PE004950","210.00","Vehicle Maintenance - Spare Parts","190395154","22/11/2017","Fleet Services","Fleet Management","R3009"
"Wolverhampton City Council","http://opendatacommunities.org/id/metropolitan-district-council/wolverhampton","705183","Lodge Tyre Co.Limited","PE004950","25.00","Vehicle Maintenance - Spare Parts","190395154","22/11/2017","Fleet Services","Fleet Management","R3009"
"Wolverhampton City Council","http://opendatacommunities.org/id/metropolitan-district-council/wolverhampton","705183","Lodge Tyre Co.Limited","PE004950","195.00","Vehicle Maintenance - Spare Parts","190395154","22/11/2017","Fleet Services","Fleet Management","R3009"
"Wolverhampton City Council","http://opendatacommunities.org/id/metropolitan-district-council/wolverhampton","705183","Lodge Tyre Co.Limited","PE004950","30.00","Vehicle Maintenance - Spare Parts","190395154","22/11/2017","Fleet Services","Fleet Management","R3009"
"Wolverhampton City Council","http://opendatacommunities.org/id/metropolitan-district-council/wolverhampton","705183","Lodge Tyre Co.Limited","PE004950","195.00","Vehicle Maintenance - Spare Parts","190395154","22/11/2017","Fleet Services","Fleet Management","R3009"
"Wolverhampton City Council","http://opendatacommunities.org/id/metropolitan-district-council/wolverhampton","705183","Lodge Tyre Co.Limited","PE004950","195.00","Vehicle Maintenance - Spare Parts","190395154","22/11/2017","Fleet Services","Fleet Management","R3009"
"Wolverhampton City Council","http://opendatacommunities.org/id/metropolitan-district-council/wolverhampton","705183","Lodge Tyre Co.Limited","PE004950","195.00","Vehicle Maintenance - Spare Parts","190395154","22/11/2017","Fleet Services","Fleet Management","R3009"
"Wolverhampton City Council","http://opendatacommunities.org/id/metropolitan-district-council/wolverhampton","705183","Lodge Tyre Co.Limited","PE004950","195.00","Vehicle Maintenance - Spare Parts","190395154","22/11/2017","Fleet Services","Fleet Management","R3009"
"Wolverhampton City Council","http://opendatacommunities.org/id/metropolitan-district-council/wolverhampton","705183","Lodge Tyre Co.Limited","PE004950","195.00","Vehicle Maintenance - Spare Parts","190395154","22/11/2017","Fleet Services","Fleet Management","R3009"
"Wolverhampton City Council","http://opendatacommunities.org/id/metropolitan-district-council/wolverhampton","705183","Lodge Tyre Co.Limited","PE004950","25.00","Vehicle Maintenance - Spare Parts","190395154","22/11/2017","Fleet Services","Fleet Management","R3009"
"Wolverhampton City Council","http://opendatacommunities.org/id/metropolitan-district-council/wolverhampton","705183","Lodge Tyre Co.Limited","PE004950","3.00","Vehicle Maintenance - Spare Parts","190395154","22/11/2017","Fleet Services","Fleet Management","R3009"
"Wolverhampton City Council","http://opendatacommunities.org/id/metropolitan-district-council/wolverhampton","705183","Lodge Tyre Co.Limited","PE004950","25.00","Vehicle Maintenance - Spare Parts","190395154","22/11/2017","Fleet Services","Fleet Management","R3009"
"Wolverhampton City Council","http://opendatacommunities.org/id/metropolitan-district-council/wolverhampton","705183","Lodge Tyre Co.Limited","PE004950","195.00","Vehicle Maintenance - Spare Parts","190395154","22/11/2017","Fleet Services","Fleet Management","R3009"
"Wolverhampton City Council","http://opendatacommunities.org/id/metropolitan-district-council/wolverhampton","705183","Lodge Tyre Co.Limited","PE004950","195.00","Vehicle Maintenance - Spare Parts","190395154","22/11/2017","Fleet Services","Fleet Management","R3009"
"Wolverhampton City Council","http://opendatacommunities.org/id/metropolitan-district-council/wolverhampton","705183","Lodge Tyre Co.Limited","PE004950","195.00","Vehicle Maintenance - Spare Parts","190395154","22/11/2017","Fleet Services","Fleet Management","R3009"
"Wolverhampton City Council","http://opendatacommunities.org/id/metropolitan-district-council/wolverhampton","705183","Lodge Tyre Co.Limited","PE004950","30.00","Vehicle Maintenance - Spare Parts","190395154","22/11/2017","Fleet Services","Fleet Management","R3009"
"Wolverhampton City Council","http://opendatacommunities.org/id/metropolitan-district-council/wolverhampton","705183","Lodge Tyre Co.Limited","PE004950","30.00","Vehicle Maintenance - Spare Parts","190395154","22/11/2017","Fleet Services","Fleet Management","R3009"
"Wolverhampton City Council","http://opendatacommunities.org/id/metropolitan-district-council/wolverhampton","705183","Lodge Tyre Co.Limited","PE004950","15.00","Vehicle Maintenance - Spare Parts","190395154","22/11/2017","Fleet Services","Fleet Management","R3009"
"Wolverhampton City Council","http://opendatacommunities.org/id/metropolitan-district-council/wolverhampton","705183","Lodge Tyre Co.Limited","PE004950","77.00","Vehicle Maintenance - Spare Parts","190395154","22/11/2017","Fleet Services","Fleet Management","R3009"
"Wolverhampton City Council","http://opendatacommunities.org/id/metropolitan-district-council/wolverhampton","705183","Lodge Tyre Co.Limited","PE004950","89.00","Vehicle Maintenance - Spare Parts","190395154","22/11/2017","Fleet Services","Fleet Management","R3009"
"Wolverhampton City Council","http://opendatacommunities.org/id/metropolitan-district-council/wolverhampton","705183","Lodge Tyre Co.Limited","PE004950","15.00","Vehicle Maintenance - Spare Parts","190395154","22/11/2017","Fleet Services","Fleet Management","R3009"
"Wolverhampton City Council","http://opendatacommunities.org/id/metropolitan-district-council/wolverhampton","705183","Lodge Tyre Co.Limited","PE004950","3.00","Vehicle Maintenance - Spare Parts","190395154","22/11/2017","Fleet Services","Fleet Management","R3009"
"Wolverhampton City Council","http://opendatacommunities.org/id/metropolitan-district-council/wolverhampton","705183","Lodge Tyre Co.Limited","PE004950","60.00","Vehicle Maintenance - Spare Parts","190395154","22/11/2017","Fleet Services","Fleet Management","R3009"
"Wolverhampton City Council","http://opendatacommunities.org/id/metropolitan-district-council/wolverhampton","705183","Lodge Tyre Co.Limited","PE004950","25.00","Vehicle Maintenance - Spare Parts","190395154","22/11/2017","Fleet Services","Fleet Management","R3009"
"Wolverhampton City Council","http://opendatacommunities.org/id/metropolitan-district-council/wolverhampton","705183","Lodge Tyre Co.Limited","PE004950","3.00","Vehicle Maintenance - Spare Parts","190395154","22/11/2017","Fleet Services","Fleet Management","R3009"
"Wolverhampton City Council","http://opendatacommunities.org/id/metropolitan-district-council/wolverhampton","705183","Lodge Tyre Co.Limited","PE004950","30.00","Vehicle Maintenance - Spare Parts","190395154","22/11/2017","Fleet Services","Fleet Management","R3009"
"Wolverhampton City Council","http://opendatacommunities.org/id/metropolitan-district-council/wolverhampton","705183","Lodge Tyre Co.Limited","PE004950","195.00","Vehicle Maintenance - Spare Parts","190395154","22/11/2017","Fleet Services","Fleet Management","R3009"
"Wolverhampton City Council","http://opendatacommunities.org/id/metropolitan-district-council/wolverhampton","705183","Lodge Tyre Co.Limited","PE004950","195.00","Vehicle Maintenance - Spare Parts","190395154","22/11/2017","Fleet Services","Fleet Management","R3009"
"Wolverhampton City Council","http://opendatacommunities.org/id/metropolitan-district-council/wolverhampton","705183","Lodge Tyre Co.Limited","PE004950","195.00","Vehicle Maintenance - Spare Parts","190395154","22/11/2017","Fleet Services","Fleet Management","R3009"
"Wolverhampton City Council","http://opendatacommunities.org/id/metropolitan-district-council/wolverhampton","705183","Lodge Tyre Co.Limited","PE004950","25.00","Vehicle Maintenance - Spare Parts","190395154","22/11/2017","Fleet Services","Fleet Management","R3009"
"Wolverhampton City Council","http://opendatacommunities.org/id/metropolitan-district-council/wolverhampton","705183","Lodge Tyre Co.Limited","PE004950","25.00","Vehicle Maintenance - Spare Parts","190395154","22/11/2017","Fleet Services","Fleet Management","R3009"
"Wolverhampton City Council","http://opendatacommunities.org/id/metropolitan-district-council/wolverhampton","705183","Lodge Tyre Co.Limited","PE004950","210.00","Vehicle Maintenance - Spare Parts","190395154","22/11/2017","Fleet Services","Fleet Management","R3009"
"Wolverhampton City Council","http://opendatacommunities.org/id/metropolitan-district-council/wolverhampton","705183","Lodge Tyre Co.Limited","PE004950","195.00","Vehicle Maintenance - Spare Parts","190395154","22/11/2017","Fleet Services","Fleet Management","R3009"
"Wolverhampton City Council","http://opendatacommunities.org/id/metropolitan-district-council/wolverhampton","705183","Lodge Tyre Co.Limited","PE004950","195.00","Vehicle Maintenance - Spare Parts","190395154","22/11/2017","Fleet Services","Fleet Management","R3009"
"Wolverhampton City Council","http://opendatacommunities.org/id/metropolitan-district-council/wolverhampton","705183","Lodge Tyre Co.Limited","PE004950","195.00","Vehicle Maintenance - Spare Parts","190395154","22/11/2017","Fleet Services","Fleet Management","R3009"
"Wolverhampton City Council","http://opendatacommunities.org/id/metropolitan-district-council/wolverhampton","705183","Lodge Tyre Co.Limited","PE004950","195.00","Vehicle Maintenance - Spare Parts","190395154","22/11/2017","Fleet Services","Fleet Management","R3009"
"Wolverhampton City Council","http://opendatacommunities.org/id/metropolitan-district-council/wolverhampton","705183","Lodge Tyre Co.Limited","PE004950","210.00","Vehicle Maintenance - Spare Parts","190395154","22/11/2017","Fleet Services","Fleet Management","R3009"
"Wolverhampton City Council","http://opendatacommunities.org/id/metropolitan-district-council/wolverhampton","705183","Lodge Tyre Co.Limited","PE004950","195.00","Vehicle Maintenance - Spare Parts","190395154","22/11/2017","Fleet Services","Fleet Management","R3009"
"Wolverhampton City Council","http://opendatacommunities.org/id/metropolitan-district-council/wolverhampton","705183","Lodge Tyre Co.Limited","PE004950","195.00","Vehicle Maintenance - Spare Parts","190395154","22/11/2017","Fleet Services","Fleet Management","R3009"
"Wolverhampton City Council","http://opendatacommunities.org/id/metropolitan-district-council/wolverhampton","705183","Lodge Tyre Co.Limited","PE004950","25.00","Vehicle Maintenance - Spare Parts","190395154","22/11/2017","Fleet Services","Fleet Management","R3009"
"Wolverhampton City Council","http://opendatacommunities.org/id/metropolitan-district-council/wolverhampton","705183","Lodge Tyre Co.Limited","PE004950","25.00","Vehicle Maintenance - Spare Parts","190395154","22/11/2017","Fleet Services","Fleet Management","R3009"
"Wolverhampton City Council","http://opendatacommunities.org/id/metropolitan-district-council/wolverhampton","705183","Lodge Tyre Co.Limited","PE004950","25.00","Vehicle Maintenance - Spare Parts","190395154","22/11/2017","Fleet Services","Fleet Management","R3009"
"Wolverhampton City Council","http://opendatacommunities.org/id/metropolitan-district-council/wolverhampton","705183","Lodge Tyre Co.Limited","PE004950","15.00","Vehicle Maintenance - Spare Parts","190395154","22/11/2017","Fleet Services","Fleet Management","R3009"
"Wolverhampton City Council","http://opendatacommunities.org/id/metropolitan-district-council/wolverhampton","705183","Lodge Tyre Co.Limited","PE004950","15.00","Vehicle Maintenance - Spare Parts","190395154","22/11/2017","Fleet Services","Fleet Management","R3009"
"Wolverhampton City Council","http://opendatacommunities.org/id/metropolitan-district-council/wolverhampton","705183","Lodge Tyre Co.Limited","PE004950","3.00","Vehicle Maintenance - Spare Parts","190395154","22/11/2017","Fleet Services","Fleet Management","R3009"
"Wolverhampton City Council","http://opendatacommunities.org/id/metropolitan-district-council/wolverhampton","705183","Lodge Tyre Co.Limited","PE004950","3.00","Vehicle Maintenance - Spare Parts","190395154","22/11/2017","Fleet Services","Fleet Management","R3009"
"Wolverhampton City Council","http://opendatacommunities.org/id/metropolitan-district-council/wolverhampton","705183","Lodge Tyre Co.Limited","PE004950","15.00","Vehicle Maintenance - Spare Parts","190395154","22/11/2017","Fleet Services","Fleet Management","R3009"
"Wolverhampton City Council","http://opendatacommunities.org/id/metropolitan-district-council/wolverhampton","705183","Lodge Tyre Co.Limited","PE004950","25.00","Vehicle Maintenance - Spare Parts","190395154","22/11/2017","Fleet Services","Fleet Management","R3009"
"Wolverhampton City Council","http://opendatacommunities.org/id/metropolitan-district-council/wolverhampton","705183","Lodge Tyre Co.Limited","PE004950","60.00","Vehicle Maintenance - Spare Parts","190395154","22/11/2017","Fleet Services","Fleet Management","R3009"
"Wolverhampton City Council","http://opendatacommunities.org/id/metropolitan-district-council/wolverhampton","705183","Lodge Tyre Co.Limited","PE004950","25.00","Vehicle Maintenance - Spare Parts","190395154","22/11/2017","Fleet Services","Fleet Management","R3009"
"Wolverhampton City Council","http://opendatacommunities.org/id/metropolitan-district-council/wolverhampton","705183","Lodge Tyre Co.Limited","PE004950","195.00","Vehicle Maintenance - Spare Parts","190395154","22/11/2017","Fleet Services","Fleet Management","R3009"
"Wolverhampton City Council","http://opendatacommunities.org/id/metropolitan-district-council/wolverhampton","705183","Lodge Tyre Co.Limited","PE004950","25.00","Vehicle Maintenance - Spare Parts","190395154","22/11/2017","Fleet Services","Fleet Management","R3009"
"Wolverhampton City Council","http://opendatacommunities.org/id/metropolitan-district-council/wolverhampton","705183","Lodge Tyre Co.Limited","PE004950","195.00","Vehicle Maintenance - Spare Parts","190395154","22/11/2017","Fleet Services","Fleet Management","R3009"
"Wolverhampton City Council","http://opendatacommunities.org/id/metropolitan-district-council/wolverhampton","705183","Lodge Tyre Co.Limited","PE004950","15.00","Vehicle Maintenance - Spare Parts","190395154","22/11/2017","Fleet Services","Fleet Management","R3009"
"Wolverhampton City Council","http://opendatacommunities.org/id/metropolitan-district-council/wolverhampton","705183","Lodge Tyre Co.Limited","PE004950","48.00","Vehicle Maintenance - Spare Parts","190395154","22/11/2017","Fleet Services","Fleet Management","R3009"
"Wolverhampton City Council","http://opendatacommunities.org/id/metropolitan-district-council/wolverhampton","705183","Lodge Tyre Co.Limited","PE004950","60.00","Vehicle Maintenance - Spare Parts","190395154","22/11/2017","Fleet Services","Fleet Management","R3009"
"Wolverhampton City Council","http://opendatacommunities.org/id/metropolitan-district-council/wolverhampton","705183","Lodge Tyre Co.Limited","PE004950","60.04","Vehicle Maintenance - Spare Parts","190395154","22/11/2017","Fleet Services","Fleet Management","R3009"
"Wolverhampton City Council","http://opendatacommunities.org/id/metropolitan-district-council/wolverhampton","705183","Lodge Tyre Co.Limited","PE004950","60.04","Vehicle Maintenance - Spare Parts","190395154","22/11/2017","Fleet Services","Fleet Management","R3009"
"Wolverhampton City Council","http://opendatacommunities.org/id/metropolitan-district-council/wolverhampton","705183","Lodge Tyre Co.Limited","PE004950","215.00","Vehicle Maintenance - Spare Parts","190395154","22/11/2017","Fleet Services","Fleet Management","R3009"
